Workbook

Sheet Standing Wave
A1: Amplitude (m) | B1: Wave 1 | C1: =D1/1000 -> 0.171 | D1: 171
B2: Wave 2 | C2: =D2/1000 -> 0.25 | D2: 250
A3: Wavelength (m) | B3: Wave 1 | C3: =D3/100 -> 1 | D3: 100
B4: Wave 2 | C4: =D4/100 -> 1 | D4: 100
A5: Distance Stepsize | B5: ∆x (m) | C5: 0.01
A6: Time Stepsize | B6: ∆t (s) | C6: 0.005
A7: Frequency (Hz) | B7: Wave 1 | C7: 5
B8: Wave 2 | C8: 5
B9: Time (s) | C9: =C9+C6 -> 0.01

Sheet Calculations
A1: x (m) | B1: y1 (m) | C1: y2 (m) | D1: y'=y1+y2
A3: =SUM(A1)+'Standing Wave'!$C$5 -> 0.01 | B3: ='Standing Wave'!$C$1*SIN(((2*PI())/'Standing Wave'!$C$3)*A3-2*PI()*'Standing Wave'!$C$7*'Standing Wave'!$C$9) -> -0.01609252158 | C3: ='Standing Wave'!$C$2*SIN(((2*PI())/'Standing Wave'!$C$4)*A3+2*PI()*'Standing Wave'!$C$8*'Standing Wave'!$C$9) -> 0.05453581035 | D3: =B3+C3 -> 0.03844328877
A4: =SUM(A3)+'Standing Wave'!$C$5 -> 0.02 | B4: ='Standing Wave'!$C$1*SIN(((2*PI())/'Standing Wave'!$C$3)*A4-2*PI()*'Standing Wave'!$C$7*'Standing Wave'!$C$9) -> -0.005371239802 | C4: ='Standing Wave'!$C$2*SIN(((2*PI())/'Standing Wave'!$C$4)*A4+2*PI()*'Standing Wave'!$C$8*'Standing Wave'!$C$9) -> 0.06974777651 | D4: =B4+C4 -> 0.06437653671
A5: =SUM(A4)+'Standing Wave'!$C$5 -> 0.03 | B5: ='Standing Wave'!$C$1*SIN(((2*PI())/'Standing Wave'!$C$3)*A5-2*PI()*'Standing Wave'!$C$7*'Standing Wave'!$C$9) -> 0.005371239802 | C5: ='Standing Wave'!$C$2*SIN(((2*PI())/'Standing Wave'!$C$4)*A5+2*PI()*'Standing Wave'!$C$8*'Standing Wave'!$C$9) -> 0.08468448006 | D5: =B5+C5 -> 0.09005571986
A6: =SUM(A5)+'Standing Wave'!$C$5 -> 0.04 | B6: ='Standing Wave'!$C$1*SIN(((2*PI())/'Standing Wave'!$C$3)*A6-2*PI()*'Standing Wave'!$C$7*'Standing Wave'!$C$9) -> 0.01609252158 | C6: ='Standing Wave'!$C$2*SIN(((2*PI())/'Standing Wave'!$C$4)*A6+2*PI()*'Standing Wave'!$C$8*'Standing Wave'!$C$9) -> 0.09928697266 | D6: 0.1153794942
A7: =SUM(A6)+'Standing Wave'!$C$5 -> 0.05 | B7: ='Standing Wave'!$C$1*SIN(((2*PI())/'Standing Wave'!$C$3)*A7-2*PI()*'Standing Wave'!$C$7*'Standing Wave'!$C$9) -> 0.02675029352 | C7: ='Standing Wave'!$C$2*SIN(((2*PI())/'Standing Wave'!$C$4)*A7+2*PI()*'Standing Wave'!$C$8*'Standing Wave'!$C$9) -> 0.1134976249 | D7: 0.1402479185
A8: =SUM(A7)+'Standing Wave'!$C$5 -> 0.06 | B8: ='Standing Wave'!$C$1*SIN(((2*PI())/'Standing Wave'!$C$3)*A8-2*PI()*'Standing Wave'!$C$7*'Standing Wave'!$C$9) -> 0.03730249428 | C8: ='Standing Wave'!$C$2*SIN(((2*PI())/'Standing Wave'!$C$4)*A8+2*PI()*'Standing Wave'!$C$8*'Standing Wave'!$C$9) -> 0.1272603539 | D8: 0.1645628482
A9: =SUM(A8)+'Standing Wave'!$C$5 -> 0.07 | B9: ='Standing Wave'!$C$1*SIN(((2*PI())/'Standing Wave'!$C$3)*A9-2*PI()*'Standing Wave'!$C$7*'Standing Wave'!$C$9) -> 0.04770747913 | C9: ='Standing Wave'!$C$2*SIN(((2*PI())/'Standing Wave'!$C$4)*A9+2*PI()*'Standing Wave'!$C$8*'Standing Wave'!$C$9) -> 0.1405208445 | D9: 0.1882283236
A10: =SUM(A9)+'Standing Wave'!$C$5 -> 0.08 | B10: ='Standing Wave'!$C$1*SIN(((2*PI())/'Standing Wave'!$C$3)*A10-2*PI()*'Standing Wave'!$C$7*'Standing Wave'!$C$9) -> 0.05792418436 | C10: ='Standing Wave'!$C$2*SIN(((2*PI())/'Standing Wave'!$C$4)*A10+2*PI()*'Standing Wave'!$C$8*'Standing Wave'!$C$9) -> 0.1532267634 | D10: 0.2111509478
A11: =SUM(A10)+'Standing Wave'!$C$5 -> 0.09 | B11: ='Standing Wave'!$C$1*SIN(((2*PI())/'Standing Wave'!$C$3)*A11-2*PI()*'Standing Wave'!$C$7*'Standing Wave'!$C$9) -> 0.0679122893 | C11: ='Standing Wave'!$C$2*SIN(((2*PI())/'Standing Wave'!$C$4)*A11+2*PI()*'Standing Wave'!$C$8*'Standing Wave'!$C$9) -> 0.1653279663 | D11: 0.2332402556
A12: =SUM(A11)+'Standing Wave'!$C$5 -> 0.1 | B12: ='Standing Wave'!$C$1*SIN(((2*PI())/'Standing Wave'!$C$3)*A12-2*PI()*'Standing Wave'!$C$7*'Standing Wave'!$C$9) -> 0.07763237546 | C12: ='Standing Wave'!$C$2*SIN(((2*PI())/'Standing Wave'!$C$4)*A12+2*PI()*'Standing Wave'!$C$8*'Standing Wave'!$C$9) -> 0.1767766953 | D12: 0.2544090708
A13: =SUM(A12)+'Standing Wave'!$C$5 -> 0.11 | B13: ='Standing Wave'!$C$1*SIN(((2*PI())/'Standing Wave'!$C$3)*A13-2*PI()*'Standing Wave'!$C$7*'Standing Wave'!$C$9) -> 0.08704608209 | C13: ='Standing Wave'!$C$2*SIN(((2*PI())/'Standing Wave'!$C$4)*A13+2*PI()*'Standing Wave'!$C$8*'Standing Wave'!$C$9) -> 0.1875277674 | D13: 0.2745738495
A14: =SUM(A13)+'Standing Wave'!$C$5 -> 0.12 | B14: ='Standing Wave'!$C$1*SIN(((2*PI())/'Standing Wave'!$C$3)*A14-2*PI()*'Standing Wave'!$C$7*'Standing Wave'!$C$9) -> 0.09611625761 | C14: ='Standing Wave'!$C$2*SIN(((2*PI())/'Standing Wave'!$C$4)*A14+2*PI()*'Standing Wave'!$C$8*'Standing Wave'!$C$9) -> 0.1975387531 | D14: 0.2936550107
A15: =SUM(A14)+'Standing Wave'!$C$5 -> 0.13 | B15: ='Standing Wave'!$C$1*SIN(((2*PI())/'Standing Wave'!$C$3)*A15-2*PI()*'Standing Wave'!$C$7*'Standing Wave'!$C$9) -> 0.1048071062 | C15: ='Standing Wave'!$C$2*SIN(((2*PI())/'Standing Wave'!$C$4)*A15+2*PI()*'Standing Wave'!$C$8*'Standing Wave'!$C$9) -> 0.2067701436 | D15: 0.3115772497
A16: =SUM(A15)+'Standing Wave'!$C$5 -> 0.14 | B16: ='Standing Wave'!$C$1*SIN(((2*PI())/'Standing Wave'!$C$3)*A16-2*PI()*'Standing Wave'!$C$7*'Standing Wave'!$C$9) -> 0.113084329 | C16: ='Standing Wave'!$C$2*SIN(((2*PI())/'Standing Wave'!$C$4)*A16+2*PI()*'Standing Wave'!$C$8*'Standing Wave'!$C$9) -> 0.2151855068 | D16: 0.3282698357
A17: =SUM(A16)+'Standing Wave'!$C$5 -> 0.15 | B17: ='Standing Wave'!$C$1*SIN(((2*PI())/'Standing Wave'!$C$3)*A17-2*PI()*'Standing Wave'!$C$7*'Standing Wave'!$C$9) -> 0.1209152596 | C17: ='Standing Wave'!$C$2*SIN(((2*PI())/'Standing Wave'!$C$4)*A17+2*PI()*'Standing Wave'!$C$8*'Standing Wave'!$C$9) -> 0.222751631 | D17: 0.3436668906
A18: =SUM(A17)+'Standing Wave'!$C$5 -> 0.16 | B18: ='Standing Wave'!$C$1*SIN(((2*PI())/'Standing Wave'!$C$3)*A18-2*PI()*'Standing Wave'!$C$7*'Standing Wave'!$C$9) -> 0.1282689929 | C18: ='Standing Wave'!$C$2*SIN(((2*PI())/'Standing Wave'!$C$4)*A18+2*PI()*'Standing Wave'!$C$8*'Standing Wave'!$C$9) -> 0.2294386564 | D18: 0.3577076493
A19: =SUM(A18)+'Standing Wave'!$C$5 -> 0.17 | B19: ='Standing Wave'!$C$1*SIN(((2*PI())/'Standing Wave'!$C$3)*A19-2*PI()*'Standing Wave'!$C$7*'Standing Wave'!$C$9) -> 0.1351165071 | C19: ='Standing Wave'!$C$2*SIN(((2*PI())/'Standing Wave'!$C$4)*A19+2*PI()*'Standing Wave'!$C$8*'Standing Wave'!$C$9) -> 0.2352201922 | D19: 0.3703366994
A20: =SUM(A19)+'Standing Wave'!$C$5 -> 0.18 | B20: ='Standing Wave'!$C$1*SIN(((2*PI())/'Standing Wave'!$C$3)*A20-2*PI()*'Standing Wave'!$C$7*'Standing Wave'!$C$9) -> 0.1414307782 | C20: ='Standing Wave'!$C$2*SIN(((2*PI())/'Standing Wave'!$C$4)*A20+2*PI()*'Standing Wave'!$C$8*'Standing Wave'!$C$9) -> 0.2400734214 | D20: 0.3815041996
A21: =SUM(A20)+'Standing Wave'!$C$5 -> 0.19 | B21: ='Standing Wave'!$C$1*SIN(((2*PI())/'Standing Wave'!$C$3)*A21-2*PI()*'Standing Wave'!$C$7*'Standing Wave'!$C$9) -> 0.1471868866 | C21: ='Standing Wave'!$C$2*SIN(((2*PI())/'Standing Wave'!$C$4)*A21+2*PI()*'Standing Wave'!$C$8*'Standing Wave'!$C$9) -> 0.2439791905 | D21: 0.3911660771
A22: =SUM(A21)+'Standing Wave'!$C$5 -> 0.2 | B22: ='Standing Wave'!$C$1*SIN(((2*PI())/'Standing Wave'!$C$3)*A22-2*PI()*'Standing Wave'!$C$7*'Standing Wave'!$C$9) -> 0.1523621156 | C22: ='Standing Wave'!$C$2*SIN(((2*PI())/'Standing Wave'!$C$4)*A22+2*PI()*'Standing Wave'!$C$8*'Standing Wave'!$C$9) -> 0.2469220851 | D22: 0.3992842008
A23: =SUM(A22)+'Standing Wave'!$C$5 -> 0.21 | B23: ='Standing Wave'!$C$1*SIN(((2*PI())/'Standing Wave'!$C$3)*A23-2*PI()*'Standing Wave'!$C$7*'Standing Wave'!$C$9) -> 0.156936041 | C23: ='Standing Wave'!$C$2*SIN(((2*PI())/'Standing Wave'!$C$4)*A23+2*PI()*'Standing Wave'!$C$8*'Standing Wave'!$C$9) -> 0.2488904912 | D23: 0.4058265321
A24: =SUM(A23)+'Standing Wave'!$C$5 -> 0.22 | B24: ='Standing Wave'!$C$1*SIN(((2*PI())/'Standing Wave'!$C$3)*A24-2*PI()*'Standing Wave'!$C$7*'Standing Wave'!$C$9) -> 0.1608906115 | C24: ='Standing Wave'!$C$2*SIN(((2*PI())/'Standing Wave'!$C$4)*A24+2*PI()*'Standing Wave'!$C$8*'Standing Wave'!$C$9) -> 0.2498766401 | D24: 0.4107672516
A25: =SUM(A24)+'Standing Wave'!$C$5 -> 0.23 | B25: ='Standing Wave'!$C$1*SIN(((2*PI())/'Standing Wave'!$C$3)*A25-2*PI()*'Standing Wave'!$C$7*'Standing Wave'!$C$9) -> 0.1642102203 | C25: ='Standing Wave'!$C$2*SIN(((2*PI())/'Standing Wave'!$C$4)*A25+2*PI()*'Standing Wave'!$C$8*'Standing Wave'!$C$9) -> 0.2498766401 | D25: 0.4140868603
A26: =SUM(A25)+'Standing Wave'!$C$5 -> 0.24 | B26: ='Standing Wave'!$C$1*SIN(((2*PI())/'Standing Wave'!$C$3)*A26-2*PI()*'Standing Wave'!$C$7*'Standing Wave'!$C$9) -> 0.1668817663 | C26: ='Standing Wave'!$C$2*SIN(((2*PI())/'Standing Wave'!$C$4)*A26+2*PI()*'Standing Wave'!$C$8*'Standing Wave'!$C$9) -> 0.2488904912 | D26: 0.4157722574
A27: =SUM(A26)+'Standing Wave'!$C$5 -> 0.25 | B27: ='Standing Wave'!$C$1*SIN(((2*PI())/'Standing Wave'!$C$3)*A27-2*PI()*'Standing Wave'!$C$7*'Standing Wave'!$C$9) -> 0.1688947062 | C27: ='Standing Wave'!$C$2*SIN(((2*PI())/'Standing Wave'!$C$4)*A27+2*PI()*'Standing Wave'!$C$8*'Standing Wave'!$C$9) -> 0.2469220851 | D27: 0.4158167914
A28: =SUM(A27)+'Standing Wave'!$C$5 -> 0.26 | B28: ='Standing Wave'!$C$1*SIN(((2*PI())/'Standing Wave'!$C$3)*A28-2*PI()*'Standing Wave'!$C$7*'Standing Wave'!$C$9) -> 0.1702410959 | C28: ='Standing Wave'!$C$2*SIN(((2*PI())/'Standing Wave'!$C$4)*A28+2*PI()*'Standing Wave'!$C$8*'Standing Wave'!$C$9) -> 0.2439791905 | D28: 0.4142202864
A29: =SUM(A28)+'Standing Wave'!$C$5 -> 0.27 | B29: ='Standing Wave'!$C$1*SIN(((2*PI())/'Standing Wave'!$C$3)*A29-2*PI()*'Standing Wave'!$C$7*'Standing Wave'!$C$9) -> 0.1709156218 | C29: ='Standing Wave'!$C$2*SIN(((2*PI())/'Standing Wave'!$C$4)*A29+2*PI()*'Standing Wave'!$C$8*'Standing Wave'!$C$9) -> 0.2400734214 | D29: 0.4109890432
A30: =SUM(A29)+'Standing Wave'!$C$5 -> 0.28 | B30: ='Standing Wave'!$C$1*SIN(((2*PI())/'Standing Wave'!$C$3)*A30-2*PI()*'Standing Wave'!$C$7*'Standing Wave'!$C$9) -> 0.1709156218 | C30: ='Standing Wave'!$C$2*SIN(((2*PI())/'Standing Wave'!$C$4)*A30+2*PI()*'Standing Wave'!$C$8*'Standing Wave'!$C$9) -> 0.2352201922 | D30: 0.4061358141
A31: =SUM(A30)+'Standing Wave'!$C$5 -> 0.29 | B31: ='Standing Wave'!$C$1*SIN(((2*PI())/'Standing Wave'!$C$3)*A31-2*PI()*'Standing Wave'!$C$7*'Standing Wave'!$C$9) -> 0.1702410959 | C31: ='Standing Wave'!$C$2*SIN(((2*PI())/'Standing Wave'!$C$4)*A31+2*PI()*'Standing Wave'!$C$8*'Standing Wave'!$C$9) -> 0.2294386564 | D31: 0.3996797524
A32: =SUM(A31)+'Standing Wave'!$C$5 -> 0.3 | B32: ='Standing Wave'!$C$1*SIN(((2*PI())/'Standing Wave'!$C$3)*A32-2*PI()*'Standing Wave'!$C$7*'Standing Wave'!$C$9) -> 0.1688947062 | C32: ='Standing Wave'!$C$2*SIN(((2*PI())/'Standing Wave'!$C$4)*A32+2*PI()*'Standing Wave'!$C$8*'Standing Wave'!$C$9) -> 0.222751631 | D32: 0.3916463373
A33: =SUM(A32)+'Standing Wave'!$C$5 -> 0.31 | B33: ='Standing Wave'!$C$1*SIN(((2*PI())/'Standing Wave'!$C$3)*A33-2*PI()*'Standing Wave'!$C$7*'Standing Wave'!$C$9) -> 0.1668817663 | C33: ='Standing Wave'!$C$2*SIN(((2*PI())/'Standing Wave'!$C$4)*A33+2*PI()*'Standing Wave'!$C$8*'Standing Wave'!$C$9) -> 0.2151855068 | D33: 0.382067273
A34: =SUM(A33)+'Standing Wave'!$C$5 -> 0.32 | B34: ='Standing Wave'!$C$1*SIN(((2*PI())/'Standing Wave'!$C$3)*A34-2*PI()*'Standing Wave'!$C$7*'Standing Wave'!$C$9) -> 0.1642102203 | C34: ='Standing Wave'!$C$2*SIN(((2*PI())/'Standing Wave'!$C$4)*A34+2*PI()*'Standing Wave'!$C$8*'Standing Wave'!$C$9) -> 0.2067701436 | D34: 0.3709803638
A35: =SUM(A34)+'Standing Wave'!$C$5 -> 0.33 | B35: ='Standing Wave'!$C$1*SIN(((2*PI())/'Standing Wave'!$C$3)*A35-2*PI()*'Standing Wave'!$C$7*'Standing Wave'!$C$9) -> 0.1608906115 | C35: ='Standing Wave'!$C$2*SIN(((2*PI())/'Standing Wave'!$C$4)*A35+2*PI()*'Standing Wave'!$C$8*'Standing Wave'!$C$9) -> 0.1975387531 | D35: 0.3584293646
A36: =SUM(A35)+'Standing Wave'!$C$5 -> 0.34 | B36: ='Standing Wave'!$C$1*SIN(((2*PI())/'Standing Wave'!$C$3)*A36-2*PI()*'Standing Wave'!$C$7*'Standing Wave'!$C$9) -> 0.156936041 | C36: ='Standing Wave'!$C$2*SIN(((2*PI())/'Standing Wave'!$C$4)*A36+2*PI()*'Standing Wave'!$C$8*'Standing Wave'!$C$9) -> 0.1875277674 | D36: 0.3444638084
A37: =SUM(A36)+'Standing Wave'!$C$5 -> 0.35 | B37: ='Standing Wave'!$C$1*SIN(((2*PI())/'Standing Wave'!$C$3)*A37-2*PI()*'Standing Wave'!$C$7*'Standing Wave'!$C$9) -> 0.1523621156 | C37: ='Standing Wave'!$C$2*SIN(((2*PI())/'Standing Wave'!$C$4)*A37+2*PI()*'Standing Wave'!$C$8*'Standing Wave'!$C$9) -> 0.1767766953 | D37: 0.3291388109
A38: =SUM(A37)+'Standing Wave'!$C$5 -> 0.36 | B38: ='Standing Wave'!$C$1*SIN(((2*PI())/'Standing Wave'!$C$3)*A38-2*PI()*'Standing Wave'!$C$7*'Standing Wave'!$C$9) -> 0.1471868866 | C38: ='Standing Wave'!$C$2*SIN(((2*PI())/'Standing Wave'!$C$4)*A38+2*PI()*'Standing Wave'!$C$8*'Standing Wave'!$C$9) -> 0.1653279663 | D38: 0.3125148529
A39: =SUM(A38)+'Standing Wave'!$C$5 -> 0.37 | B39: ='Standing Wave'!$C$1*SIN(((2*PI())/'Standing Wave'!$C$3)*A39-2*PI()*'Standing Wave'!$C$7*'Standing Wave'!$C$9) -> 0.1414307782 | C39: ='Standing Wave'!$C$2*SIN(((2*PI())/'Standing Wave'!$C$4)*A39+2*PI()*'Standing Wave'!$C$8*'Standing Wave'!$C$9) -> 0.1532267634 | D39: 0.2946575416
A40: =SUM(A39)+'Standing Wave'!$C$5 -> 0.38 | B40: ='Standing Wave'!$C$1*SIN(((2*PI())/'Standing Wave'!$C$3)*A40-2*PI()*'Standing Wave'!$C$7*'Standing Wave'!$C$9) -> 0.1351165071 | C40: ='Standing Wave'!$C$2*SIN(((2*PI())/'Standing Wave'!$C$4)*A40+2*PI()*'Standing Wave'!$C$8*'Standing Wave'!$C$9) -> 0.1405208445 | D40: 0.2756373516
A41: =SUM(A40)+'Standing Wave'!$C$5 -> 0.39 | B41: ='Standing Wave'!$C$1*SIN(((2*PI())/'Standing Wave'!$C$3)*A41-2*PI()*'Standing Wave'!$C$7*'Standing Wave'!$C$9) -> 0.1282689929 | C41: ='Standing Wave'!$C$2*SIN(((2*PI())/'Standing Wave'!$C$4)*A41+2*PI()*'Standing Wave'!$C$8*'Standing Wave'!$C$9) -> 0.1272603539 | D41: 0.2555293468
A42: =SUM(A41)+'Standing Wave'!$C$5 -> 0.4 | B42: ='Standing Wave'!$C$1*SIN(((2*PI())/'Standing Wave'!$C$3)*A42-2*PI()*'Standing Wave'!$C$7*'Standing Wave'!$C$9) -> 0.1209152596 | C42: ='Standing Wave'!$C$2*SIN(((2*PI())/'Standing Wave'!$C$4)*A42+2*PI()*'Standing Wave'!$C$8*'Standing Wave'!$C$9) -> 0.1134976249 | D42: 0.2344128845
A43: =SUM(A42)+'Standing Wave'!$C$5 -> 0.41 | B43: ='Standing Wave'!$C$1*SIN(((2*PI())/'Standing Wave'!$C$3)*A43-2*PI()*'Standing Wave'!$C$7*'Standing Wave'!$C$9) -> 0.113084329 | C43: ='Standing Wave'!$C$2*SIN(((2*PI())/'Standing Wave'!$C$4)*A43+2*PI()*'Standing Wave'!$C$8*'Standing Wave'!$C$9) -> 0.09928697266 | D43: 0.2123713016
A44: =SUM(A43)+'Standing Wave'!$C$5 -> 0.42 | B44: ='Standing Wave'!$C$1*SIN(((2*PI())/'Standing Wave'!$C$3)*A44-2*PI()*'Standing Wave'!$C$7*'Standing Wave'!$C$9) -> 0.1048071062 | C44: ='Standing Wave'!$C$2*SIN(((2*PI())/'Standing Wave'!$C$4)*A44+2*PI()*'Standing Wave'!$C$8*'Standing Wave'!$C$9) -> 0.08468448006 | D44: 0.1894915862
A45: =SUM(A44)+'Standing Wave'!$C$5 -> 0.43 | B45: ='Standing Wave'!$C$1*SIN(((2*PI())/'Standing Wave'!$C$3)*A45-2*PI()*'Standing Wave'!$C$7*'Standing Wave'!$C$9) -> 0.09611625761 | C45: ='Standing Wave'!$C$2*SIN(((2*PI())/'Standing Wave'!$C$4)*A45+2*PI()*'Standing Wave'!$C$8*'Standing Wave'!$C$9) -> 0.06974777651 | D45: 0.1658640341
A46: =SUM(A45)+'Standing Wave'!$C$5 -> 0.44 | B46: ='Standing Wave'!$C$1*SIN(((2*PI())/'Standing Wave'!$C$3)*A46-2*PI()*'Standing Wave'!$C$7*'Standing Wave'!$C$9) -> 0.08704608209 | C46: ='Standing Wave'!$C$2*SIN(((2*PI())/'Standing Wave'!$C$4)*A46+2*PI()*'Standing Wave'!$C$8*'Standing Wave'!$C$9) -> 0.05453581035 | D46: 0.1415818924
A47: =SUM(A46)+'Standing Wave'!$C$5 -> 0.45 | B47: ='Standing Wave'!$C$1*SIN(((2*PI())/'Standing Wave'!$C$3)*A47-2*PI()*'Standing Wave'!$C$7*'Standing Wave'!$C$9) -> 0.07763237546 | C47: ='Standing Wave'!$C$2*SIN(((2*PI())/'Standing Wave'!$C$4)*A47+2*PI()*'Standing Wave'!$C$8*'Standing Wave'!$C$9) -> 0.03910861626 | D47: 0.1167409917
A48: =SUM(A47)+'Standing Wave'!$C$5 -> 0.46 | B48: ='Standing Wave'!$C$1*SIN(((2*PI())/'Standing Wave'!$C$3)*A48-2*PI()*'Standing Wave'!$C$7*'Standing Wave'!$C$9) -> 0.0679122893 | C48: ='Standing Wave'!$C$2*SIN(((2*PI())/'Standing Wave'!$C$4)*A48+2*PI()*'Standing Wave'!$C$8*'Standing Wave'!$C$9) -> 0.02352707833 | D48: 0.09143936763
A49: =SUM(A48)+'Standing Wave'!$C$5 -> 0.47 | B49: ='Standing Wave'!$C$1*SIN(((2*PI())/'Standing Wave'!$C$3)*A49-2*PI()*'Standing Wave'!$C$7*'Standing Wave'!$C$9) -> 0.05792418436 | C49: ='Standing Wave'!$C$2*SIN(((2*PI())/'Standing Wave'!$C$4)*A49+2*PI()*'Standing Wave'!$C$8*'Standing Wave'!$C$9) -> 0.00785268977 | D49: 0.06577687413
A50: =SUM(A49)+'Standing Wave'!$C$5 -> 0.48 | B50: ='Standing Wave'!$C$1*SIN(((2*PI())/'Standing Wave'!$C$3)*A50-2*PI()*'Standing Wave'!$C$7*'Standing Wave'!$C$9) -> 0.04770747913 | C50: ='Standing Wave'!$C$2*SIN(((2*PI())/'Standing Wave'!$C$4)*A50+2*PI()*'Standing Wave'!$C$8*'Standing Wave'!$C$9) -> -0.00785268977 | D50: 0.03985478936
A51: =SUM(A50)+'Standing Wave'!$C$5 -> 0.49 | B51: ='Standing Wave'!$C$1*SIN(((2*PI())/'Standing Wave'!$C$3)*A51-2*PI()*'Standing Wave'!$C$7*'Standing Wave'!$C$9) -> 0.03730249428 | C51: ='Standing Wave'!$C$2*SIN(((2*PI())/'Standing Wave'!$C$4)*A51+2*PI()*'Standing Wave'!$C$8*'Standing Wave'!$C$9) -> -0.02352707833 | D51: 0.01377541595
A52: =SUM(A51)+'Standing Wave'!$C$5 -> 0.5 | B52: ='Standing Wave'!$C$1*SIN(((2*PI())/'Standing Wave'!$C$3)*A52-2*PI()*'Standing Wave'!$C$7*'Standing Wave'!$C$9) -> 0.02675029352 | C52: ='Standing Wave'!$C$2*SIN(((2*PI())/'Standing Wave'!$C$4)*A52+2*PI()*'Standing Wave'!$C$8*'Standing Wave'!$C$9) -> -0.03910861626 | D52: -0.01235832274
A53: =SUM(A52)+'Standing Wave'!$C$5 -> 0.51 | B53: ='Standing Wave'!$C$1*SIN(((2*PI())/'Standing Wave'!$C$3)*A53-2*PI()*'Standing Wave'!$C$7*'Standing Wave'!$C$9) -> 0.01609252158 | C53: ='Standing Wave'!$C$2*SIN(((2*PI())/'Standing Wave'!$C$4)*A53+2*PI()*'Standing Wave'!$C$8*'Standing Wave'!$C$9) -> -0.05453581035 | D53: -0.03844328877
A54: =SUM(A53)+'Standing Wave'!$C$5 -> 0.52 | B54: ='Standing Wave'!$C$1*SIN(((2*PI())/'Standing Wave'!$C$3)*A54-2*PI()*'Standing Wave'!$C$7*'Standing Wave'!$C$9) -> 0.005371239802 | C54: ='Standing Wave'!$C$2*SIN(((2*PI())/'Standing Wave'!$C$4)*A54+2*PI()*'Standing Wave'!$C$8*'Standing Wave'!$C$9) -> -0.06974777651 | D54: -0.06437653671
A55: =SUM(A54)+'Standing Wave'!$C$5 -> 0.53 | B55: ='Standing Wave'!$C$1*SIN(((2*PI())/'Standing Wave'!$C$3)*A55-2*PI()*'Standing Wave'!$C$7*'Standing Wave'!$C$9) -> -0.005371239802 | C55: ='Standing Wave'!$C$2*SIN(((2*PI())/'Standing Wave'!$C$4)*A55+2*PI()*'Standing Wave'!$C$8*'Standing Wave'!$C$9) -> -0.08468448006 | D55: -0.09005571986
A56: =SUM(A55)+'Standing Wave'!$C$5 -> 0.54 | B56: ='Standing Wave'!$C$1*SIN(((2*PI())/'Standing Wave'!$C$3)*A56-2*PI()*'Standing Wave'!$C$7*'Standing Wave'!$C$9) -> -0.01609252158 | C56: ='Standing Wave'!$C$2*SIN(((2*PI())/'Standing Wave'!$C$4)*A56+2*PI()*'Standing Wave'!$C$8*'Standing Wave'!$C$9) -> -0.09928697266 | D56: -0.1153794942
A57: =SUM(A56)+'Standing Wave'!$C$5 -> 0.55 | B57: ='Standing Wave'!$C$1*SIN(((2*PI())/'Standing Wave'!$C$3)*A57-2*PI()*'Standing Wave'!$C$7*'Standing Wave'!$C$9) -> -0.02675029352 | C57: ='Standing Wave'!$C$2*SIN(((2*PI())/'Standing Wave'!$C$4)*A57+2*PI()*'Standing Wave'!$C$8*'Standing Wave'!$C$9) -> -0.1134976249 | D57: -0.1402479185
A58: =SUM(A57)+'Standing Wave'!$C$5 -> 0.56 | B58: ='Standing Wave'!$C$1*SIN(((2*PI())/'Standing Wave'!$C$3)*A58-2*PI()*'Standing Wave'!$C$7*'Standing Wave'!$C$9) -> -0.03730249428 | C58: ='Standing Wave'!$C$2*SIN(((2*PI())/'Standing Wave'!$C$4)*A58+2*PI()*'Standing Wave'!$C$8*'Standing Wave'!$C$9) -> -0.1272603539 | D58: -0.1645628482
A59: =SUM(A58)+'Standing Wave'!$C$5 -> 0.57 | B59: ='Standing Wave'!$C$1*SIN(((2*PI())/'Standing Wave'!$C$3)*A59-2*PI()*'Standing Wave'!$C$7*'Standing Wave'!$C$9) -> -0.04770747913 | C59: ='Standing Wave'!$C$2*SIN(((2*PI())/'Standing Wave'!$C$4)*A59+2*PI()*'Standing Wave'!$C$8*'Standing Wave'!$C$9) -> -0.1405208445 | D59: -0.1882283236
A60: =SUM(A59)+'Standing Wave'!$C$5 -> 0.58 | B60: ='Standing Wave'!$C$1*SIN(((2*PI())/'Standing Wave'!$C$3)*A60-2*PI()*'Standing Wave'!$C$7*'Standing Wave'!$C$9) -> -0.05792418436 | C60: ='Standing Wave'!$C$2*SIN(((2*PI())/'Standing Wave'!$C$4)*A60+2*PI()*'Standing Wave'!$C$8*'Standing Wave'!$C$9) -> -0.1532267634 | D60: -0.2111509478
A61: =SUM(A60)+'Standing Wave'!$C$5 -> 0.59 | B61: ='Standing Wave'!$C$1*SIN(((2*PI())/'Standing Wave'!$C$3)*A61-2*PI()*'Standing Wave'!$C$7*'Standing Wave'!$C$9) -> -0.0679122893 | C61: ='Standing Wave'!$C$2*SIN(((2*PI())/'Standing Wave'!$C$4)*A61+2*PI()*'Standing Wave'!$C$8*'Standing Wave'!$C$9) -> -0.1653279663 | D61: -0.2332402556
A62: =SUM(A61)+'Standing Wave'!$C$5 -> 0.6 | B62: ='Standing Wave'!$C$1*SIN(((2*PI())/'Standing Wave'!$C$3)*A62-2*PI()*'Standing Wave'!$C$7*'Standing Wave'!$C$9) -> -0.07763237546 | C62: ='Standing Wave'!$C$2*SIN(((2*PI())/'Standing Wave'!$C$4)*A62+2*PI()*'Standing Wave'!$C$8*'Standing Wave'!$C$9) -> -0.1767766953 | D62: -0.2544090708
A63: =SUM(A62)+'Standing Wave'!$C$5 -> 0.61 | B63: ='Standing Wave'!$C$1*SIN(((2*PI())/'Standing Wave'!$C$3)*A63-2*PI()*'Standing Wave'!$C$7*'Standing Wave'!$C$9) -> -0.08704608209 | C63: ='Standing Wave'!$C$2*SIN(((2*PI())/'Standing Wave'!$C$4)*A63+2*PI()*'Standing Wave'!$C$8*'Standing Wave'!$C$9) -> -0.1875277674 | D63: -0.2745738495
A64: =SUM(A63)+'Standing Wave'!$C$5 -> 0.62 | B64: ='Standing Wave'!$C$1*SIN(((2*PI())/'Standing Wave'!$C$3)*A64-2*PI()*'Standing Wave'!$C$7*'Standing Wave'!$C$9) -> -0.09611625761 | C64: ='Standing Wave'!$C$2*SIN(((2*PI())/'Standing Wave'!$C$4)*A64+2*PI()*'Standing Wave'!$C$8*'Standing Wave'!$C$9) -> -0.1975387531 | D64: -0.2936550107
A65: =SUM(A64)+'Standing Wave'!$C$5 -> 0.63 | B65: ='Standing Wave'!$C$1*SIN(((2*PI())/'Standing Wave'!$C$3)*A65-2*PI()*'Standing Wave'!$C$7*'Standing Wave'!$C$9) -> -0.1048071062 | C65: ='Standing Wave'!$C$2*SIN(((2*PI())/'Standing Wave'!$C$4)*A65+2*PI()*'Standing Wave'!$C$8*'Standing Wave'!$C$9) -> -0.2067701436 | D65: -0.3115772497
A66: =SUM(A65)+'Standing Wave'!$C$5 -> 0.64 | B66: ='Standing Wave'!$C$1*SIN(((2*PI())/'Standing Wave'!$C$3)*A66-2*PI()*'Standing Wave'!$C$7*'Standing Wave'!$C$9) -> -0.113084329 | C66: ='Standing Wave'!$C$2*SIN(((2*PI())/'Standing Wave'!$C$4)*A66+2*PI()*'Standing Wave'!$C$8*'Standing Wave'!$C$9) -> -0.2151855068 | D66: -0.3282698357
A67: =SUM(A66)+'Standing Wave'!$C$5 -> 0.65 | B67: ='Standing Wave'!$C$1*SIN(((2*PI())/'Standing Wave'!$C$3)*A67-2*PI()*'Standing Wave'!$C$7*'Standing Wave'!$C$9) -> -0.1209152596 | C67: ='Standing Wave'!$C$2*SIN(((2*PI())/'Standing Wave'!$C$4)*A67+2*PI()*'Standing Wave'!$C$8*'Standing Wave'!$C$9) -> -0.222751631 | D67: -0.3436668906
A68: =SUM(A67)+'Standing Wave'!$C$5 -> 0.66 | B68: ='Standing Wave'!$C$1*SIN(((2*PI())/'Standing Wave'!$C$3)*A68-2*PI()*'Standing Wave'!$C$7*'Standing Wave'!$C$9) -> -0.1282689929 | C68: ='Standing Wave'!$C$2*SIN(((2*PI())/'Standing Wave'!$C$4)*A68+2*PI()*'Standing Wave'!$C$8*'Standing Wave'!$C$9) -> -0.2294386564 | D68: -0.3577076493
A69: =SUM(A68)+'Standing Wave'!$C$5 -> 0.67 | B69: ='Standing Wave'!$C$1*SIN(((2*PI())/'Standing Wave'!$C$3)*A69-2*PI()*'Standing Wave'!$C$7*'Standing Wave'!$C$9) -> -0.1351165071 | C69: ='Standing Wave'!$C$2*SIN(((2*PI())/'Standing Wave'!$C$4)*A69+2*PI()*'Standing Wave'!$C$8*'Standing Wave'!$C$9) -> -0.2352201922 | D69: =B69+C69 -> -0.3703366994
A70: =SUM(A69)+'Standing Wave'!$C$5 -> 0.68 | B70: ='Standing Wave'!$C$1*SIN(((2*PI())/'Standing Wave'!$C$3)*A70-2*PI()*'Standing Wave'!$C$7*'Standing Wave'!$C$9) -> -0.1414307782 | C70: ='Standing Wave'!$C$2*SIN(((2*PI())/'Standing Wave'!$C$4)*A70+2*PI()*'Standing Wave'!$C$8*'Standing Wave'!$C$9) -> -0.2400734214 | D70: -0.3815041996
A71: =SUM(A70)+'Standing Wave'!$C$5 -> 0.69 | B71: ='Standing Wave'!$C$1*SIN(((2*PI())/'Standing Wave'!$C$3)*A71-2*PI()*'Standing Wave'!$C$7*'Standing Wave'!$C$9) -> -0.1471868866 | C71: ='Standing Wave'!$C$2*SIN(((2*PI())/'Standing Wave'!$C$4)*A71+2*PI()*'Standing Wave'!$C$8*'Standing Wave'!$C$9) -> -0.2439791905 | D71: -0.3911660771
A72: =SUM(A71)+'Standing Wave'!$C$5 -> 0.7 | B72: ='Standing Wave'!$C$1*SIN(((2*PI())/'Standing Wave'!$C$3)*A72-2*PI()*'Standing Wave'!$C$7*'Standing Wave'!$C$9) -> -0.1523621156 | C72: ='Standing Wave'!$C$2*SIN(((2*PI())/'Standing Wave'!$C$4)*A72+2*PI()*'Standing Wave'!$C$8*'Standing Wave'!$C$9) -> -0.2469220851 | D72: -0.3992842008
A73: =SUM(A72)+'Standing Wave'!$C$5 -> 0.71 | B73: ='Standing Wave'!$C$1*SIN(((2*PI())/'Standing Wave'!$C$3)*A73-2*PI()*'Standing Wave'!$C$7*'Standing Wave'!$C$9) -> -0.156936041 | C73: ='Standing Wave'!$C$2*SIN(((2*PI())/'Standing Wave'!$C$4)*A73+2*PI()*'Standing Wave'!$C$8*'Standing Wave'!$C$9) -> -0.2488904912 | D73: -0.4058265321
A74: =SUM(A73)+'Standing Wave'!$C$5 -> 0.72 | B74: ='Standing Wave'!$C$1*SIN(((2*PI())/'Standing Wave'!$C$3)*A74-2*PI()*'Standing Wave'!$C$7*'Standing Wave'!$C$9) -> -0.1608906115 | C74: ='Standing Wave'!$C$2*SIN(((2*PI())/'Standing Wave'!$C$4)*A74+2*PI()*'Standing Wave'!$C$8*'Standing Wave'!$C$9) -> -0.2498766401 | D74: -0.4107672516
A75: =SUM(A74)+'Standing Wave'!$C$5 -> 0.73 | B75: ='Standing Wave'!$C$1*SIN(((2*PI())/'Standing Wave'!$C$3)*A75-2*PI()*'Standing Wave'!$C$7*'Standing Wave'!$C$9) -> -0.1642102203 | C75: ='Standing Wave'!$C$2*SIN(((2*PI())/'Standing Wave'!$C$4)*A75+2*PI()*'Standing Wave'!$C$8*'Standing Wave'!$C$9) -> -0.2498766401 | D75: -0.4140868603
A76: =SUM(A75)+'Standing Wave'!$C$5 -> 0.74 | B76: ='Standing Wave'!$C$1*SIN(((2*PI())/'Standing Wave'!$C$3)*A76-2*PI()*'Standing Wave'!$C$7*'Standing Wave'!$C$9) -> -0.1668817663 | C76: ='Standing Wave'!$C$2*SIN(((2*PI())/'Standing Wave'!$C$4)*A76+2*PI()*'Standing Wave'!$C$8*'Standing Wave'!$C$9) -> -0.2488904912 | D76: -0.4157722574
A77: =SUM(A76)+'Standing Wave'!$C$5 -> 0.75 | B77: ='Standing Wave'!$C$1*SIN(((2*PI())/'Standing Wave'!$C$3)*A77-2*PI()*'Standing Wave'!$C$7*'Standing Wave'!$C$9) -> -0.1688947062 | C77: ='Standing Wave'!$C$2*SIN(((2*PI())/'Standing Wave'!$C$4)*A77+2*PI()*'Standing Wave'!$C$8*'Standing Wave'!$C$9) -> -0.2469220851 | D77: -0.4158167914
A78: =SUM(A77)+'Standing Wave'!$C$5 -> 0.76 | B78: ='Standing Wave'!$C$1*SIN(((2*PI())/'Standing Wave'!$C$3)*A78-2*PI()*'Standing Wave'!$C$7*'Standing Wave'!$C$9) -> -0.1702410959 | C78: ='Standing Wave'!$C$2*SIN(((2*PI())/'Standing Wave'!$C$4)*A78+2*PI()*'Standing Wave'!$C$8*'Standing Wave'!$C$9) -> -0.2439791905 | D78: -0.4142202864
A79: =SUM(A78)+'Standing Wave'!$C$5 -> 0.77 | B79: ='Standing Wave'!$C$1*SIN(((2*PI())/'Standing Wave'!$C$3)*A79-2*PI()*'Standing Wave'!$C$7*'Standing Wave'!$C$9) -> -0.1709156218 | C79: ='Standing Wave'!$C$2*SIN(((2*PI())/'Standing Wave'!$C$4)*A79+2*PI()*'Standing Wave'!$C$8*'Standing Wave'!$C$9) -> -0.2400734214 | D79: -0.4109890432
A80: =SUM(A79)+'Standing Wave'!$C$5 -> 0.78 | B80: ='Standing Wave'!$C$1*SIN(((2*PI())/'Standing Wave'!$C$3)*A80-2*PI()*'Standing Wave'!$C$7*'Standing Wave'!$C$9) -> -0.1709156218 | C80: ='Standing Wave'!$C$2*SIN(((2*PI())/'Standing Wave'!$C$4)*A80+2*PI()*'Standing Wave'!$C$8*'Standing Wave'!$C$9) -> -0.2352201922 | D80: -0.4061358141
A81: =SUM(A80)+'Standing Wave'!$C$5 -> 0.79 | B81: ='Standing Wave'!$C$1*SIN(((2*PI())/'Standing Wave'!$C$3)*A81-2*PI()*'Standing Wave'!$C$7*'Standing Wave'!$C$9) -> -0.1702410959 | C81: ='Standing Wave'!$C$2*SIN(((2*PI())/'Standing Wave'!$C$4)*A81+2*PI()*'Standing Wave'!$C$8*'Standing Wave'!$C$9) -> -0.2294386564 | D81: -0.3996797524
A82: =SUM(A81)+'Standing Wave'!$C$5 -> 0.8 | B82: ='Standing Wave'!$C$1*SIN(((2*PI())/'Standing Wave'!$C$3)*A82-2*PI()*'Standing Wave'!$C$7*'Standing Wave'!$C$9) -> -0.1688947062 | C82: ='Standing Wave'!$C$2*SIN(((2*PI())/'Standing Wave'!$C$4)*A82+2*PI()*'Standing Wave'!$C$8*'Standing Wave'!$C$9) -> -0.222751631 | D82: -0.3916463373
A83: =SUM(A82)+'Standing Wave'!$C$5 -> 0.81 | B83: ='Standing Wave'!$C$1*SIN(((2*PI())/'Standing Wave'!$C$3)*A83-2*PI()*'Standing Wave'!$C$7*'Standing Wave'!$C$9) -> -0.1668817663 | C83: ='Standing Wave'!$C$2*SIN(((2*PI())/'Standing Wave'!$C$4)*A83+2*PI()*'Standing Wave'!$C$8*'Standing Wave'!$C$9) -> -0.2151855068 | D83: -0.382067273
A84: =SUM(A83)+'Standing Wave'!$C$5 -> 0.82 | B84: ='Standing Wave'!$C$1*SIN(((2*PI())/'Standing Wave'!$C$3)*A84-2*PI()*'Standing Wave'!$C$7*'Standing Wave'!$C$9) -> -0.1642102203 | C84: ='Standing Wave'!$C$2*SIN(((2*PI())/'Standing Wave'!$C$4)*A84+2*PI()*'Standing Wave'!$C$8*'Standing Wave'!$C$9) -> -0.2067701436 | D84: -0.3709803638
A85: =SUM(A84)+'Standing Wave'!$C$5 -> 0.83 | B85: ='Standing Wave'!$C$1*SIN(((2*PI())/'Standing Wave'!$C$3)*A85-2*PI()*'Standing Wave'!$C$7*'Standing Wave'!$C$9) -> -0.1608906115 | C85: ='Standing Wave'!$C$2*SIN(((2*PI())/'Standing Wave'!$C$4)*A85+2*PI()*'Standing Wave'!$C$8*'Standing Wave'!$C$9) -> -0.1975387531 | D85: -0.3584293646
A86: =SUM(A85)+'Standing Wave'!$C$5 -> 0.84 | B86: ='Standing Wave'!$C$1*SIN(((2*PI())/'Standing Wave'!$C$3)*A86-2*PI()*'Standing Wave'!$C$7*'Standing Wave'!$C$9) -> -0.156936041 | C86: ='Standing Wave'!$C$2*SIN(((2*PI())/'Standing Wave'!$C$4)*A86+2*PI()*'Standing Wave'!$C$8*'Standing Wave'!$C$9) -> -0.1875277674 | D86: -0.3444638084
A87: =SUM(A86)+'Standing Wave'!$C$5 -> 0.85 | B87: ='Standing Wave'!$C$1*SIN(((2*PI())/'Standing Wave'!$C$3)*A87-2*PI()*'Standing Wave'!$C$7*'Standing Wave'!$C$9) -> -0.1523621156 | C87: ='Standing Wave'!$C$2*SIN(((2*PI())/'Standing Wave'!$C$4)*A87+2*PI()*'Standing Wave'!$C$8*'Standing Wave'!$C$9) -> -0.1767766953 | D87: -0.3291388109
A88: =SUM(A87)+'Standing Wave'!$C$5 -> 0.86 | B88: ='Standing Wave'!$C$1*SIN(((2*PI())/'Standing Wave'!$C$3)*A88-2*PI()*'Standing Wave'!$C$7*'Standing Wave'!$C$9) -> -0.1471868866 | C88: ='Standing Wave'!$C$2*SIN(((2*PI())/'Standing Wave'!$C$4)*A88+2*PI()*'Standing Wave'!$C$8*'Standing Wave'!$C$9) -> -0.1653279663 | D88: -0.3125148529
A89: =SUM(A88)+'Standing Wave'!$C$5 -> 0.87 | B89: ='Standing Wave'!$C$1*SIN(((2*PI())/'Standing Wave'!$C$3)*A89-2*PI()*'Standing Wave'!$C$7*'Standing Wave'!$C$9) -> -0.1414307782 | C89: ='Standing Wave'!$C$2*SIN(((2*PI())/'Standing Wave'!$C$4)*A89+2*PI()*'Standing Wave'!$C$8*'Standing Wave'!$C$9) -> -0.1532267634 | D89: -0.2946575416
A90: =SUM(A89)+'Standing Wave'!$C$5 -> 0.88 | B90: ='Standing Wave'!$C$1*SIN(((2*PI())/'Standing Wave'!$C$3)*A90-2*PI()*'Standing Wave'!$C$7*'Standing Wave'!$C$9) -> -0.1351165071 | C90: ='Standing Wave'!$C$2*SIN(((2*PI())/'Standing Wave'!$C$4)*A90+2*PI()*'Standing Wave'!$C$8*'Standing Wave'!$C$9) -> -0.1405208445 | D90: -0.2756373516
A91: =SUM(A90)+'Standing Wave'!$C$5 -> 0.89 | B91: ='Standing Wave'!$C$1*SIN(((2*PI())/'Standing Wave'!$C$3)*A91-2*PI()*'Standing Wave'!$C$7*'Standing Wave'!$C$9) -> -0.1282689929 | C91: ='Standing Wave'!$C$2*SIN(((2*PI())/'Standing Wave'!$C$4)*A91+2*PI()*'Standing Wave'!$C$8*'Standing Wave'!$C$9) -> -0.1272603539 | D91: -0.2555293468
A92: =SUM(A91)+'Standing Wave'!$C$5 -> 0.9 | B92: ='Standing Wave'!$C$1*SIN(((2*PI())/'Standing Wave'!$C$3)*A92-2*PI()*'Standing Wave'!$C$7*'Standing Wave'!$C$9) -> -0.1209152596 | C92: ='Standing Wave'!$C$2*SIN(((2*PI())/'Standing Wave'!$C$4)*A92+2*PI()*'Standing Wave'!$C$8*'Standing Wave'!$C$9) -> -0.1134976249 | D92: -0.2344128845
A93: =SUM(A92)+'Standing Wave'!$C$5 -> 0.91 | B93: ='Standing Wave'!$C$1*SIN(((2*PI())/'Standing Wave'!$C$3)*A93-2*PI()*'Standing Wave'!$C$7*'Standing Wave'!$C$9) -> -0.113084329 | C93: ='Standing Wave'!$C$2*SIN(((2*PI())/'Standing Wave'!$C$4)*A93+2*PI()*'Standing Wave'!$C$8*'Standing Wave'!$C$9) -> -0.09928697266 | D93: -0.2123713016
A94: =SUM(A93)+'Standing Wave'!$C$5 -> 0.92 | B94: ='Standing Wave'!$C$1*SIN(((2*PI())/'Standing Wave'!$C$3)*A94-2*PI()*'Standing Wave'!$C$7*'Standing Wave'!$C$9) -> -0.1048071062 | C94: ='Standing Wave'!$C$2*SIN(((2*PI())/'Standing Wave'!$C$4)*A94+2*PI()*'Standing Wave'!$C$8*'Standing Wave'!$C$9) -> -0.08468448006 | D94: -0.1894915862
A95: =SUM(A94)+'Standing Wave'!$C$5 -> 0.93 | B95: ='Standing Wave'!$C$1*SIN(((2*PI())/'Standing Wave'!$C$3)*A95-2*PI()*'Standing Wave'!$C$7*'Standing Wave'!$C$9) -> -0.09611625761 | C95: ='Standing Wave'!$C$2*SIN(((2*PI())/'Standing Wave'!$C$4)*A95+2*PI()*'Standing Wave'!$C$8*'Standing Wave'!$C$9) -> -0.06974777651 | D95: -0.1658640341
A96: =SUM(A95)+'Standing Wave'!$C$5 -> 0.94 | B96: ='Standing Wave'!$C$1*SIN(((2*PI())/'Standing Wave'!$C$3)*A96-2*PI()*'Standing Wave'!$C$7*'Standing Wave'!$C$9) -> -0.08704608209 | C96: ='Standing Wave'!$C$2*SIN(((2*PI())/'Standing Wave'!$C$4)*A96+2*PI()*'Standing Wave'!$C$8*'Standing Wave'!$C$9) -> -0.05453581035 | D96: -0.1415818924
A97: =SUM(A96)+'Standing Wave'!$C$5 -> 0.95 | B97: ='Standing Wave'!$C$1*SIN(((2*PI())/'Standing Wave'!$C$3)*A97-2*PI()*'Standing Wave'!$C$7*'Standing Wave'!$C$9) -> -0.07763237546 | C97: ='Standing Wave'!$C$2*SIN(((2*PI())/'Standing Wave'!$C$4)*A97+2*PI()*'Standing Wave'!$C$8*'Standing Wave'!$C$9) -> -0.03910861626 | D97: -0.1167409917
A98: =SUM(A97)+'Standing Wave'!$C$5 -> 0.96 | B98: ='Standing Wave'!$C$1*SIN(((2*PI())/'Standing Wave'!$C$3)*A98-2*PI()*'Standing Wave'!$C$7*'Standing Wave'!$C$9) -> -0.0679122893 | C98: ='Standing Wave'!$C$2*SIN(((2*PI())/'Standing Wave'!$C$4)*A98+2*PI()*'Standing Wave'!$C$8*'Standing Wave'!$C$9) -> -0.02352707833 | D98: -0.09143936763
A99: =SUM(A98)+'Standing Wave'!$C$5 -> 0.97 | B99: ='Standing Wave'!$C$1*SIN(((2*PI())/'Standing Wave'!$C$3)*A99-2*PI()*'Standing Wave'!$C$7*'Standing Wave'!$C$9) -> -0.05792418436 | C99: ='Standing Wave'!$C$2*SIN(((2*PI())/'Standing Wave'!$C$4)*A99+2*PI()*'Standing Wave'!$C$8*'Standing Wave'!$C$9) -> -0.00785268977 | D99: -0.06577687413
A100: =SUM(A99)+'Standing Wave'!$C$5 -> 0.98 | B100: ='Standing Wave'!$C$1*SIN(((2*PI())/'Standing Wave'!$C$3)*A100-2*PI()*'Standing Wave'!$C$7*'Standing Wave'!$C$9) -> -0.04770747913 | C100: ='Standing Wave'!$C$2*SIN(((2*PI())/'Standing Wave'!$C$4)*A100+2*PI()*'Standing Wave'!$C$8*'Standing Wave'!$C$9) -> 0.00785268977 | D100: -0.03985478936
A101: =SUM(A100)+'Standing Wave'!$C$5 -> 0.99 | B101: ='Standing Wave'!$C$1*SIN(((2*PI())/'Standing Wave'!$C$3)*A101-2*PI()*'Standing Wave'!$C$7*'Standing Wave'!$C$9) -> -0.03730249428 | C101: ='Standing Wave'!$C$2*SIN(((2*PI())/'Standing Wave'!$C$4)*A101+2*PI()*'Standing Wave'!$C$8*'Standing Wave'!$C$9) -> 0.02352707833 | D101: -0.01377541595
A102: =SUM(A101)+'Standing Wave'!$C$5 -> 1 | B102: ='Standing Wave'!$C$1*SIN(((2*PI())/'Standing Wave'!$C$3)*A102-2*PI()*'Standing Wave'!$C$7*'Standing Wave'!$C$9) -> -0.02675029352 | C102: ='Standing Wave'!$C$2*SIN(((2*PI())/'Standing Wave'!$C$4)*A102+2*PI()*'Standing Wave'!$C$8*'Standing Wave'!$C$9) -> 0.03910861626 | D102: 0.01235832274
A103: =SUM(A102)+'Standing Wave'!$C$5 -> 1.01 | B103: ='Standing Wave'!$C$1*SIN(((2*PI())/'Standing Wave'!$C$3)*A103-2*PI()*'Standing Wave'!$C$7*'Standing Wave'!$C$9) -> -0.01609252158 | C103: ='Standing Wave'!$C$2*SIN(((2*PI())/'Standing Wave'!$C$4)*A103+2*PI()*'Standing Wave'!$C$8*'Standing Wave'!$C$9) -> 0.05453581035 | D103: 0.03844328877
A104: =SUM(A103)+'Standing Wave'!$C$5 -> 1.02 | B104: ='Standing Wave'!$C$1*SIN(((2*PI())/'Standing Wave'!$C$3)*A104-2*PI()*'Standing Wave'!$C$7*'Standing Wave'!$C$9) -> -0.005371239802 | C104: ='Standing Wave'!$C$2*SIN(((2*PI())/'Standing Wave'!$C$4)*A104+2*PI()*'Standing Wave'!$C$8*'Standing Wave'!$C$9) -> 0.06974777651 | D104: 0.06437653671
A105: =SUM(A104)+'Standing Wave'!$C$5 -> 1.03 | B105: ='Standing Wave'!$C$1*SIN(((2*PI())/'Standing Wave'!$C$3)*A105-2*PI()*'Standing Wave'!$C$7*'Standing Wave'!$C$9) -> 0.005371239802 | C105: ='Standing Wave'!$C$2*SIN(((2*PI())/'Standing Wave'!$C$4)*A105+2*PI()*'Standing Wave'!$C$8*'Standing Wave'!$C$9) -> 0.08468448006 | D105: 0.09005571986
A106: =SUM(A105)+'Standing Wave'!$C$5 -> 1.04 | B106: ='Standing Wave'!$C$1*SIN(((2*PI())/'Standing Wave'!$C$3)*A106-2*PI()*'Standing Wave'!$C$7*'Standing Wave'!$C$9) -> 0.01609252158 | C106: ='Standing Wave'!$C$2*SIN(((2*PI())/'Standing Wave'!$C$4)*A106+2*PI()*'Standing Wave'!$C$8*'Standing Wave'!$C$9) -> 0.09928697266 | D106: 0.1153794942
A107: =SUM(A106)+'Standing Wave'!$C$5 -> 1.05 | B107: ='Standing Wave'!$C$1*SIN(((2*PI())/'Standing Wave'!$C$3)*A107-2*PI()*'Standing Wave'!$C$7*'Standing Wave'!$C$9) -> 0.02675029352 | C107: ='Standing Wave'!$C$2*SIN(((2*PI())/'Standing Wave'!$C$4)*A107+2*PI()*'Standing Wave'!$C$8*'Standing Wave'!$C$9) -> 0.1134976249 | D107: 0.1402479185
A108: =SUM(A107)+'Standing Wave'!$C$5 -> 1.06 | B108: ='Standing Wave'!$C$1*SIN(((2*PI())/'Standing Wave'!$C$3)*A108-2*PI()*'Standing Wave'!$C$7*'Standing Wave'!$C$9) -> 0.03730249428 | C108: ='Standing Wave'!$C$2*SIN(((2*PI())/'Standing Wave'!$C$4)*A108+2*PI()*'Standing Wave'!$C$8*'Standing Wave'!$C$9) -> 0.1272603539 | D108: 0.1645628482
A109: =SUM(A108)+'Standing Wave'!$C$5 -> 1.07 | B109: ='Standing Wave'!$C$1*SIN(((2*PI())/'Standing Wave'!$C$3)*A109-2*PI()*'Standing Wave'!$C$7*'Standing Wave'!$C$9) -> 0.04770747913 | C109: ='Standing Wave'!$C$2*SIN(((2*PI())/'Standing Wave'!$C$4)*A109+2*PI()*'Standing Wave'!$C$8*'Standing Wave'!$C$9) -> 0.1405208445 | D109: 0.1882283236
A110: =SUM(A109)+'Standing Wave'!$C$5 -> 1.08 | B110: ='Standing Wave'!$C$1*SIN(((2*PI())/'Standing Wave'!$C$3)*A110-2*PI()*'Standing Wave'!$C$7*'Standing Wave'!$C$9) -> 0.05792418436 | C110: ='Standing Wave'!$C$2*SIN(((2*PI())/'Standing Wave'!$C$4)*A110+2*PI()*'Standing Wave'!$C$8*'Standing Wave'!$C$9) -> 0.1532267634 | D110: 0.2111509478
A111: =SUM(A110)+'Standing Wave'!$C$5 -> 1.09 | B111: ='Standing Wave'!$C$1*SIN(((2*PI())/'Standing Wave'!$C$3)*A111-2*PI()*'Standing Wave'!$C$7*'Standing Wave'!$C$9) -> 0.0679122893 | C111: ='Standing Wave'!$C$2*SIN(((2*PI())/'Standing Wave'!$C$4)*A111+2*PI()*'Standing Wave'!$C$8*'Standing Wave'!$C$9) -> 0.1653279663 | D111: 0.2332402556
A112: =SUM(A111)+'Standing Wave'!$C$5 -> 1.1 | B112: ='Standing Wave'!$C$1*SIN(((2*PI())/'Standing Wave'!$C$3)*A112-2*PI()*'Standing Wave'!$C$7*'Standing Wave'!$C$9) -> 0.07763237546 | C112: ='Standing Wave'!$C$2*SIN(((2*PI())/'Standing Wave'!$C$4)*A112+2*PI()*'Standing Wave'!$C$8*'Standing Wave'!$C$9) -> 0.1767766953 | D112: 0.2544090708
A113: =SUM(A112)+'Standing Wave'!$C$5 -> 1.11 | B113: ='Standing Wave'!$C$1*SIN(((2*PI())/'Standing Wave'!$C$3)*A113-2*PI()*'Standing Wave'!$C$7*'Standing Wave'!$C$9) -> 0.08704608209 | C113: ='Standing Wave'!$C$2*SIN(((2*PI())/'Standing Wave'!$C$4)*A113+2*PI()*'Standing Wave'!$C$8*'Standing Wave'!$C$9) -> 0.1875277674 | D113: 0.2745738495
A114: =SUM(A113)+'Standing Wave'!$C$5 -> 1.12 | B114: ='Standing Wave'!$C$1*SIN(((2*PI())/'Standing Wave'!$C$3)*A114-2*PI()*'Standing Wave'!$C$7*'Standing Wave'!$C$9) -> 0.09611625761 | C114: ='Standing Wave'!$C$2*SIN(((2*PI())/'Standing Wave'!$C$4)*A114+2*PI()*'Standing Wave'!$C$8*'Standing Wave'!$C$9) -> 0.1975387531 | D114: 0.2936550107
A115: =SUM(A114)+'Standing Wave'!$C$5 -> 1.13 | B115: ='Standing Wave'!$C$1*SIN(((2*PI())/'Standing Wave'!$C$3)*A115-2*PI()*'Standing Wave'!$C$7*'Standing Wave'!$C$9) -> 0.1048071062 | C115: ='Standing Wave'!$C$2*SIN(((2*PI())/'Standing Wave'!$C$4)*A115+2*PI()*'Standing Wave'!$C$8*'Standing Wave'!$C$9) -> 0.2067701436 | D115: 0.3115772497
A116: =SUM(A115)+'Standing Wave'!$C$5 -> 1.14 | B116: ='Standing Wave'!$C$1*SIN(((2*PI())/'Standing Wave'!$C$3)*A116-2*PI()*'Standing Wave'!$C$7*'Standing Wave'!$C$9) -> 0.113084329 | C116: ='Standing Wave'!$C$2*SIN(((2*PI())/'Standing Wave'!$C$4)*A116+2*PI()*'Standing Wave'!$C$8*'Standing Wave'!$C$9) -> 0.2151855068 | D116: 0.3282698357
A117: =SUM(A116)+'Standing Wave'!$C$5 -> 1.15 | B117: ='Standing Wave'!$C$1*SIN(((2*PI())/'Standing Wave'!$C$3)*A117-2*PI()*'Standing Wave'!$C$7*'Standing Wave'!$C$9) -> 0.1209152596 | C117: ='Standing Wave'!$C$2*SIN(((2*PI())/'Standing Wave'!$C$4)*A117+2*PI()*'Standing Wave'!$C$8*'Standing Wave'!$C$9) -> 0.222751631 | D117: 0.3436668906
A118: =SUM(A117)+'Standing Wave'!$C$5 -> 1.16 | B118: ='Standing Wave'!$C$1*SIN(((2*PI())/'Standing Wave'!$C$3)*A118-2*PI()*'Standing Wave'!$C$7*'Standing Wave'!$C$9) -> 0.1282689929 | C118: ='Standing Wave'!$C$2*SIN(((2*PI())/'Standing Wave'!$C$4)*A118+2*PI()*'Standing Wave'!$C$8*'Standing Wave'!$C$9) -> 0.2294386564 | D118: 0.3577076493
A119: =SUM(A118)+'Standing Wave'!$C$5 -> 1.17 | B119: ='Standing Wave'!$C$1*SIN(((2*PI())/'Standing Wave'!$C$3)*A119-2*PI()*'Standing Wave'!$C$7*'Standing Wave'!$C$9) -> 0.1351165071 | C119: ='Standing Wave'!$C$2*SIN(((2*PI())/'Standing Wave'!$C$4)*A119+2*PI()*'Standing Wave'!$C$8*'Standing Wave'!$C$9) -> 0.2352201922 | D119: 0.3703366994
A120: =SUM(A119)+'Standing Wave'!$C$5 -> 1.18 | B120: ='Standing Wave'!$C$1*SIN(((2*PI())/'Standing Wave'!$C$3)*A120-2*PI()*'Standing Wave'!$C$7*'Standing Wave'!$C$9) -> 0.1414307782 | C120: ='Standing Wave'!$C$2*SIN(((2*PI())/'Standing Wave'!$C$4)*A120+2*PI()*'Standing Wave'!$C$8*'Standing Wave'!$C$9) -> 0.2400734214 | D120: 0.3815041996
A121: =SUM(A120)+'Standing Wave'!$C$5 -> 1.19 | B121: ='Standing Wave'!$C$1*SIN(((2*PI())/'Standing Wave'!$C$3)*A121-2*PI()*'Standing Wave'!$C$7*'Standing Wave'!$C$9) -> 0.1471868866 | C121: ='Standing Wave'!$C$2*SIN(((2*PI())/'Standing Wave'!$C$4)*A121+2*PI()*'Standing Wave'!$C$8*'Standing Wave'!$C$9) -> 0.2439791905 | D121: 0.3911660771
A122: =SUM(A121)+'Standing Wave'!$C$5 -> 1.2 | B122: ='Standing Wave'!$C$1*SIN(((2*PI())/'Standing Wave'!$C$3)*A122-2*PI()*'Standing Wave'!$C$7*'Standing Wave'!$C$9) -> 0.1523621156 | C122: ='Standing Wave'!$C$2*SIN(((2*PI())/'Standing Wave'!$C$4)*A122+2*PI()*'Standing Wave'!$C$8*'Standing Wave'!$C$9) -> 0.2469220851 | D122: 0.3992842008
A123: =SUM(A122)+'Standing Wave'!$C$5 -> 1.21 | B123: ='Standing Wave'!$C$1*SIN(((2*PI())/'Standing Wave'!$C$3)*A123-2*PI()*'Standing Wave'!$C$7*'Standing Wave'!$C$9) -> 0.156936041 | C123: ='Standing Wave'!$C$2*SIN(((2*PI())/'Standing Wave'!$C$4)*A123+2*PI()*'Standing Wave'!$C$8*'Standing Wave'!$C$9) -> 0.2488904912 | D123: 0.4058265321
A124: =SUM(A123)+'Standing Wave'!$C$5 -> 1.22 | B124: ='Standing Wave'!$C$1*SIN(((2*PI())/'Standing Wave'!$C$3)*A124-2*PI()*'Standing Wave'!$C$7*'Standing Wave'!$C$9) -> 0.1608906115 | C124: ='Standing Wave'!$C$2*SIN(((2*PI())/'Standing Wave'!$C$4)*A124+2*PI()*'Standing Wave'!$C$8*'Standing Wave'!$C$9) -> 0.2498766401 | D124: 0.4107672516
A125: =SUM(A124)+'Standing Wave'!$C$5 -> 1.23 | B125: ='Standing Wave'!$C$1*SIN(((2*PI())/'Standing Wave'!$C$3)*A125-2*PI()*'Standing Wave'!$C$7*'Standing Wave'!$C$9) -> 0.1642102203 | C125: ='Standing Wave'!$C$2*SIN(((2*PI())/'Standing Wave'!$C$4)*A125+2*PI()*'Standing Wave'!$C$8*'Standing Wave'!$C$9) -> 0.2498766401 | D125: 0.4140868603
A126: =SUM(A125)+'Standing Wave'!$C$5 -> 1.24 | B126: ='Standing Wave'!$C$1*SIN(((2*PI())/'Standing Wave'!$C$3)*A126-2*PI()*'Standing Wave'!$C$7*'Standing Wave'!$C$9) -> 0.1668817663 | C126: ='Standing Wave'!$C$2*SIN(((2*PI())/'Standing Wave'!$C$4)*A126+2*PI()*'Standing Wave'!$C$8*'Standing Wave'!$C$9) -> 0.2488904912 | D126: 0.4157722574
A127: =SUM(A126)+'Standing Wave'!$C$5 -> 1.25 | B127: ='Standing Wave'!$C$1*SIN(((2*PI())/'Standing Wave'!$C$3)*A127-2*PI()*'Standing Wave'!$C$7*'Standing Wave'!$C$9) -> 0.1688947062 | C127: ='Standing Wave'!$C$2*SIN(((2*PI())/'Standing Wave'!$C$4)*A127+2*PI()*'Standing Wave'!$C$8*'Standing Wave'!$C$9) -> 0.2469220851 | D127: 0.4158167914
A128: =SUM(A127)+'Standing Wave'!$C$5 -> 1.26 | B128: ='Standing Wave'!$C$1*SIN(((2*PI())/'Standing Wave'!$C$3)*A128-2*PI()*'Standing Wave'!$C$7*'Standing Wave'!$C$9) -> 0.1702410959 | C128: ='Standing Wave'!$C$2*SIN(((2*PI())/'Standing Wave'!$C$4)*A128+2*PI()*'Standing Wave'!$C$8*'Standing Wave'!$C$9) -> 0.2439791905 | D128: 0.4142202864
A129: =SUM(A128)+'Standing Wave'!$C$5 -> 1.27 | B129: ='Standing Wave'!$C$1*SIN(((2*PI())/'Standing Wave'!$C$3)*A129-2*PI()*'Standing Wave'!$C$7*'Standing Wave'!$C$9) -> 0.1709156218 | C129: ='Standing Wave'!$C$2*SIN(((2*PI())/'Standing Wave'!$C$4)*A129+2*PI()*'Standing Wave'!$C$8*'Standing Wave'!$C$9) -> 0.2400734214 | D129: 0.4109890432
A130: =SUM(A129)+'Standing Wave'!$C$5 -> 1.28 | B130: ='Standing Wave'!$C$1*SIN(((2*PI())/'Standing Wave'!$C$3)*A130-2*PI()*'Standing Wave'!$C$7*'Standing Wave'!$C$9) -> 0.1709156218 | C130: ='Standing Wave'!$C$2*SIN(((2*PI())/'Standing Wave'!$C$4)*A130+2*PI()*'Standing Wave'!$C$8*'Standing Wave'!$C$9) -> 0.2352201922 | D130: 0.4061358141
A131: =SUM(A130)+'Standing Wave'!$C$5 -> 1.29 | B131: ='Standing Wave'!$C$1*SIN(((2*PI())/'Standing Wave'!$C$3)*A131-2*PI()*'Standing Wave'!$C$7*'Standing Wave'!$C$9) -> 0.1702410959 | C131: ='Standing Wave'!$C$2*SIN(((2*PI())/'Standing Wave'!$C$4)*A131+2*PI()*'Standing Wave'!$C$8*'Standing Wave'!$C$9) -> 0.2294386564 | D131: 0.3996797524
A132: =SUM(A131)+'Standing Wave'!$C$5 -> 1.3 | B132: ='Standing Wave'!$C$1*SIN(((2*PI())/'Standing Wave'!$C$3)*A132-2*PI()*'Standing Wave'!$C$7*'Standing Wave'!$C$9) -> 0.1688947062 | C132: ='Standing Wave'!$C$2*SIN(((2*PI())/'Standing Wave'!$C$4)*A132+2*PI()*'Standing Wave'!$C$8*'Standing Wave'!$C$9) -> 0.222751631 | D132: 0.3916463373
A133: =SUM(A132)+'Standing Wave'!$C$5 -> 1.31 | B133: ='Standing Wave'!$C$1*SIN(((2*PI())/'Standing Wave'!$C$3)*A133-2*PI()*'Standing Wave'!$C$7*'Standing Wave'!$C$9) -> 0.1668817663 | C133: ='Standing Wave'!$C$2*SIN(((2*PI())/'Standing Wave'!$C$4)*A133+2*PI()*'Standing Wave'!$C$8*'Standing Wave'!$C$9) -> 0.2151855068 | D133: =B133+C133 -> 0.382067273
A134: =SUM(A133)+'Standing Wave'!$C$5 -> 1.32 | B134: ='Standing Wave'!$C$1*SIN(((2*PI())/'Standing Wave'!$C$3)*A134-2*PI()*'Standing Wave'!$C$7*'Standing Wave'!$C$9) -> 0.1642102203 | C134: ='Standing Wave'!$C$2*SIN(((2*PI())/'Standing Wave'!$C$4)*A134+2*PI()*'Standing Wave'!$C$8*'Standing Wave'!$C$9) -> 0.2067701436 | D134: 0.3709803638
A135: =SUM(A134)+'Standing Wave'!$C$5 -> 1.33 | B135: ='Standing Wave'!$C$1*SIN(((2*PI())/'Standing Wave'!$C$3)*A135-2*PI()*'Standing Wave'!$C$7*'Standing Wave'!$C$9) -> 0.1608906115 | C135: ='Standing Wave'!$C$2*SIN(((2*PI())/'Standing Wave'!$C$4)*A135+2*PI()*'Standing Wave'!$C$8*'Standing Wave'!$C$9) -> 0.1975387531 | D135: 0.3584293646
A136: =SUM(A135)+'Standing Wave'!$C$5 -> 1.34 | B136: ='Standing Wave'!$C$1*SIN(((2*PI())/'Standing Wave'!$C$3)*A136-2*PI()*'Standing Wave'!$C$7*'Standing Wave'!$C$9) -> 0.156936041 | C136: ='Standing Wave'!$C$2*SIN(((2*PI())/'Standing Wave'!$C$4)*A136+2*PI()*'Standing Wave'!$C$8*'Standing Wave'!$C$9) -> 0.1875277674 | D136: 0.3444638084
A137: =SUM(A136)+'Standing Wave'!$C$5 -> 1.35 | B137: ='Standing Wave'!$C$1*SIN(((2*PI())/'Standing Wave'!$C$3)*A137-2*PI()*'Standing Wave'!$C$7*'Standing Wave'!$C$9) -> 0.1523621156 | C137: ='Standing Wave'!$C$2*SIN(((2*PI())/'Standing Wave'!$C$4)*A137+2*PI()*'Standing Wave'!$C$8*'Standing Wave'!$C$9) -> 0.1767766953 | D137: 0.3291388109
A138: =SUM(A137)+'Standing Wave'!$C$5 -> 1.36 | B138: ='Standing Wave'!$C$1*SIN(((2*PI())/'Standing Wave'!$C$3)*A138-2*PI()*'Standing Wave'!$C$7*'Standing Wave'!$C$9) -> 0.1471868866 | C138: ='Standing Wave'!$C$2*SIN(((2*PI())/'Standing Wave'!$C$4)*A138+2*PI()*'Standing Wave'!$C$8*'Standing Wave'!$C$9) -> 0.1653279663 | D138: 0.3125148529
A139: =SUM(A138)+'Standing Wave'!$C$5 -> 1.37 | B139: ='Standing Wave'!$C$1*SIN(((2*PI())/'Standing Wave'!$C$3)*A139-2*PI()*'Standing Wave'!$C$7*'Standing Wave'!$C$9) -> 0.1414307782 | C139: ='Standing Wave'!$C$2*SIN(((2*PI())/'Standing Wave'!$C$4)*A139+2*PI()*'Standing Wave'!$C$8*'Standing Wave'!$C$9) -> 0.1532267634 | D139: 0.2946575416
A140: =SUM(A139)+'Standing Wave'!$C$5 -> 1.38 | B140: ='Standing Wave'!$C$1*SIN(((2*PI())/'Standing Wave'!$C$3)*A140-2*PI()*'Standing Wave'!$C$7*'Standing Wave'!$C$9) -> 0.1351165071 | C140: ='Standing Wave'!$C$2*SIN(((2*PI())/'Standing Wave'!$C$4)*A140+2*PI()*'Standing Wave'!$C$8*'Standing Wave'!$C$9) -> 0.1405208445 | D140: 0.2756373516
A141: =SUM(A140)+'Standing Wave'!$C$5 -> 1.39 | B141: ='Standing Wave'!$C$1*SIN(((2*PI())/'Standing Wave'!$C$3)*A141-2*PI()*'Standing Wave'!$C$7*'Standing Wave'!$C$9) -> 0.1282689929 | C141: ='Standing Wave'!$C$2*SIN(((2*PI())/'Standing Wave'!$C$4)*A141+2*PI()*'Standing Wave'!$C$8*'Standing Wave'!$C$9) -> 0.1272603539 | D141: 0.2555293468
A142: =SUM(A141)+'Standing Wave'!$C$5 -> 1.4 | B142: ='Standing Wave'!$C$1*SIN(((2*PI())/'Standing Wave'!$C$3)*A142-2*PI()*'Standing Wave'!$C$7*'Standing Wave'!$C$9) -> 0.1209152596 | C142: ='Standing Wave'!$C$2*SIN(((2*PI())/'Standing Wave'!$C$4)*A142+2*PI()*'Standing Wave'!$C$8*'Standing Wave'!$C$9) -> 0.1134976249 | D142: 0.2344128845
A143: =SUM(A142)+'Standing Wave'!$C$5 -> 1.41 | B143: ='Standing Wave'!$C$1*SIN(((2*PI())/'Standing Wave'!$C$3)*A143-2*PI()*'Standing Wave'!$C$7*'Standing Wave'!$C$9) -> 0.113084329 | C143: ='Standing Wave'!$C$2*SIN(((2*PI())/'Standing Wave'!$C$4)*A143+2*PI()*'Standing Wave'!$C$8*'Standing Wave'!$C$9) -> 0.09928697266 | D143: 0.2123713016
A144: =SUM(A143)+'Standing Wave'!$C$5 -> 1.42 | B144: ='Standing Wave'!$C$1*SIN(((2*PI())/'Standing Wave'!$C$3)*A144-2*PI()*'Standing Wave'!$C$7*'Standing Wave'!$C$9) -> 0.1048071062 | C144: ='Standing Wave'!$C$2*SIN(((2*PI())/'Standing Wave'!$C$4)*A144+2*PI()*'Standing Wave'!$C$8*'Standing Wave'!$C$9) -> 0.08468448006 | D144: 0.1894915862
A145: =SUM(A144)+'Standing Wave'!$C$5 -> 1.43 | B145: ='Standing Wave'!$C$1*SIN(((2*PI())/'Standing Wave'!$C$3)*A145-2*PI()*'Standing Wave'!$C$7*'Standing Wave'!$C$9) -> 0.09611625761 | C145: ='Standing Wave'!$C$2*SIN(((2*PI())/'Standing Wave'!$C$4)*A145+2*PI()*'Standing Wave'!$C$8*'Standing Wave'!$C$9) -> 0.06974777651 | D145: 0.1658640341
A146: =SUM(A145)+'Standing Wave'!$C$5 -> 1.44 | B146: ='Standing Wave'!$C$1*SIN(((2*PI())/'Standing Wave'!$C$3)*A146-2*PI()*'Standing Wave'!$C$7*'Standing Wave'!$C$9) -> 0.08704608209 | C146: ='Standing Wave'!$C$2*SIN(((2*PI())/'Standing Wave'!$C$4)*A146+2*PI()*'Standing Wave'!$C$8*'Standing Wave'!$C$9) -> 0.05453581035 | D146: 0.1415818924
A147: =SUM(A146)+'Standing Wave'!$C$5 -> 1.45 | B147: ='Standing Wave'!$C$1*SIN(((2*PI())/'Standing Wave'!$C$3)*A147-2*PI()*'Standing Wave'!$C$7*'Standing Wave'!$C$9) -> 0.07763237546 | C147: ='Standing Wave'!$C$2*SIN(((2*PI())/'Standing Wave'!$C$4)*A147+2*PI()*'Standing Wave'!$C$8*'Standing Wave'!$C$9) -> 0.03910861626 | D147: 0.1167409917
A148: =SUM(A147)+'Standing Wave'!$C$5 -> 1.46 | B148: ='Standing Wave'!$C$1*SIN(((2*PI())/'Standing Wave'!$C$3)*A148-2*PI()*'Standing Wave'!$C$7*'Standing Wave'!$C$9) -> 0.0679122893 | C148: ='Standing Wave'!$C$2*SIN(((2*PI())/'Standing Wave'!$C$4)*A148+2*PI()*'Standing Wave'!$C$8*'Standing Wave'!$C$9) -> 0.02352707833 | D148: 0.09143936763
A149: =SUM(A148)+'Standing Wave'!$C$5 -> 1.47 | B149: ='Standing Wave'!$C$1*SIN(((2*PI())/'Standing Wave'!$C$3)*A149-2*PI()*'Standing Wave'!$C$7*'Standing Wave'!$C$9) -> 0.05792418436 | C149: ='Standing Wave'!$C$2*SIN(((2*PI())/'Standing Wave'!$C$4)*A149+2*PI()*'Standing Wave'!$C$8*'Standing Wave'!$C$9) -> 0.00785268977 | D149: 0.06577687413
A150: =SUM(A149)+'Standing Wave'!$C$5 -> 1.48 | B150: ='Standing Wave'!$C$1*SIN(((2*PI())/'Standing Wave'!$C$3)*A150-2*PI()*'Standing Wave'!$C$7*'Standing Wave'!$C$9) -> 0.04770747913 | C150: ='Standing Wave'!$C$2*SIN(((2*PI())/'Standing Wave'!$C$4)*A150+2*PI()*'Standing Wave'!$C$8*'Standing Wave'!$C$9) -> -0.00785268977 | D150: 0.03985478936
A151: =SUM(A150)+'Standing Wave'!$C$5 -> 1.49 | B151: ='Standing Wave'!$C$1*SIN(((2*PI())/'Standing Wave'!$C$3)*A151-2*PI()*'Standing Wave'!$C$7*'Standing Wave'!$C$9) -> 0.03730249428 | C151: ='Standing Wave'!$C$2*SIN(((2*PI())/'Standing Wave'!$C$4)*A151+2*PI()*'Standing Wave'!$C$8*'Standing Wave'!$C$9) -> -0.02352707833 | D151: 0.01377541595
A152: =SUM(A151)+'Standing Wave'!$C$5 -> 1.5 | B152: ='Standing Wave'!$C$1*SIN(((2*PI())/'Standing Wave'!$C$3)*A152-2*PI()*'Standing Wave'!$C$7*'Standing Wave'!$C$9) -> 0.02675029352 | C152: ='Standing Wave'!$C$2*SIN(((2*PI())/'Standing Wave'!$C$4)*A152+2*PI()*'Standing Wave'!$C$8*'Standing Wave'!$C$9) -> -0.03910861626 | D152: -0.01235832274
A153: =SUM(A152)+'Standing Wave'!$C$5 -> 1.51 | B153: ='Standing Wave'!$C$1*SIN(((2*PI())/'Standing Wave'!$C$3)*A153-2*PI()*'Standing Wave'!$C$7*'Standing Wave'!$C$9) -> 0.01609252158 | C153: ='Standing Wave'!$C$2*SIN(((2*PI())/'Standing Wave'!$C$4)*A153+2*PI()*'Standing Wave'!$C$8*'Standing Wave'!$C$9) -> -0.05453581035 | D153: -0.03844328877
A154: =SUM(A153)+'Standing Wave'!$C$5 -> 1.52 | B154: ='Standing Wave'!$C$1*SIN(((2*PI())/'Standing Wave'!$C$3)*A154-2*PI()*'Standing Wave'!$C$7*'Standing Wave'!$C$9) -> 0.005371239802 | C154: ='Standing Wave'!$C$2*SIN(((2*PI())/'Standing Wave'!$C$4)*A154+2*PI()*'Standing Wave'!$C$8*'Standing Wave'!$C$9) -> -0.06974777651 | D154: -0.06437653671
A155: =SUM(A154)+'Standing Wave'!$C$5 -> 1.53 | B155: ='Standing Wave'!$C$1*SIN(((2*PI())/'Standing Wave'!$C$3)*A155-2*PI()*'Standing Wave'!$C$7*'Standing Wave'!$C$9) -> -0.005371239802 | C155: ='Standing Wave'!$C$2*SIN(((2*PI())/'Standing Wave'!$C$4)*A155+2*PI()*'Standing Wave'!$C$8*'Standing Wave'!$C$9) -> -0.08468448006 | D155: -0.09005571986
A156: =SUM(A155)+'Standing Wave'!$C$5 -> 1.54 | B156: ='Standing Wave'!$C$1*SIN(((2*PI())/'Standing Wave'!$C$3)*A156-2*PI()*'Standing Wave'!$C$7*'Standing Wave'!$C$9) -> -0.01609252158 | C156: ='Standing Wave'!$C$2*SIN(((2*PI())/'Standing Wave'!$C$4)*A156+2*PI()*'Standing Wave'!$C$8*'Standing Wave'!$C$9) -> -0.09928697266 | D156: -0.1153794942
A157: =SUM(A156)+'Standing Wave'!$C$5 -> 1.55 | B157: ='Standing Wave'!$C$1*SIN(((2*PI())/'Standing Wave'!$C$3)*A157-2*PI()*'Standing Wave'!$C$7*'Standing Wave'!$C$9) -> -0.02675029352 | C157: ='Standing Wave'!$C$2*SIN(((2*PI())/'Standing Wave'!$C$4)*A157+2*PI()*'Standing Wave'!$C$8*'Standing Wave'!$C$9) -> -0.1134976249 | D157: -0.1402479185
A158: =SUM(A157)+'Standing Wave'!$C$5 -> 1.56 | B158: ='Standing Wave'!$C$1*SIN(((2*PI())/'Standing Wave'!$C$3)*A158-2*PI()*'Standing Wave'!$C$7*'Standing Wave'!$C$9) -> -0.03730249428 | C158: ='Standing Wave'!$C$2*SIN(((2*PI())/'Standing Wave'!$C$4)*A158+2*PI()*'Standing Wave'!$C$8*'Standing Wave'!$C$9) -> -0.1272603539 | D158: -0.1645628482
A159: =SUM(A158)+'Standing Wave'!$C$5 -> 1.57 | B159: ='Standing Wave'!$C$1*SIN(((2*PI())/'Standing Wave'!$C$3)*A159-2*PI()*'Standing Wave'!$C$7*'Standing Wave'!$C$9) -> -0.04770747913 | C159: ='Standing Wave'!$C$2*SIN(((2*PI())/'Standing Wave'!$C$4)*A159+2*PI()*'Standing Wave'!$C$8*'Standing Wave'!$C$9) -> -0.1405208445 | D159: -0.1882283236
A160: =SUM(A159)+'Standing Wave'!$C$5 -> 1.58 | B160: ='Standing Wave'!$C$1*SIN(((2*PI())/'Standing Wave'!$C$3)*A160-2*PI()*'Standing Wave'!$C$7*'Standing Wave'!$C$9) -> -0.05792418436 | C160: ='Standing Wave'!$C$2*SIN(((2*PI())/'Standing Wave'!$C$4)*A160+2*PI()*'Standing Wave'!$C$8*'Standing Wave'!$C$9) -> -0.1532267634 | D160: -0.2111509478
A161: =SUM(A160)+'Standing Wave'!$C$5 -> 1.59 | B161: ='Standing Wave'!$C$1*SIN(((2*PI())/'Standing Wave'!$C$3)*A161-2*PI()*'Standing Wave'!$C$7*'Standing Wave'!$C$9) -> -0.0679122893 | C161: ='Standing Wave'!$C$2*SIN(((2*PI())/'Standing Wave'!$C$4)*A161+2*PI()*'Standing Wave'!$C$8*'Standing Wave'!$C$9) -> -0.1653279663 | D161: -0.2332402556
A162: =SUM(A161)+'Standing Wave'!$C$5 -> 1.6 | B162: ='Standing Wave'!$C$1*SIN(((2*PI())/'Standing Wave'!$C$3)*A162-2*PI()*'Standing Wave'!$C$7*'Standing Wave'!$C$9) -> -0.07763237546 | C162: ='Standing Wave'!$C$2*SIN(((2*PI())/'Standing Wave'!$C$4)*A162+2*PI()*'Standing Wave'!$C$8*'Standing Wave'!$C$9) -> -0.1767766953 | D162: -0.2544090708
A163: =SUM(A162)+'Standing Wave'!$C$5 -> 1.61 | B163: ='Standing Wave'!$C$1*SIN(((2*PI())/'Standing Wave'!$C$3)*A163-2*PI()*'Standing Wave'!$C$7*'Standing Wave'!$C$9) -> -0.08704608209 | C163: ='Standing Wave'!$C$2*SIN(((2*PI())/'Standing Wave'!$C$4)*A163+2*PI()*'Standing Wave'!$C$8*'Standing Wave'!$C$9) -> -0.1875277674 | D163: -0.2745738495
A164: =SUM(A163)+'Standing Wave'!$C$5 -> 1.62 | B164: ='Standing Wave'!$C$1*SIN(((2*PI())/'Standing Wave'!$C$3)*A164-2*PI()*'Standing Wave'!$C$7*'Standing Wave'!$C$9) -> -0.09611625761 | C164: ='Standing Wave'!$C$2*SIN(((2*PI())/'Standing Wave'!$C$4)*A164+2*PI()*'Standing Wave'!$C$8*'Standing Wave'!$C$9) -> -0.1975387531 | D164: -0.2936550107
A165: =SUM(A164)+'Standing Wave'!$C$5 -> 1.63 | B165: ='Standing Wave'!$C$1*SIN(((2*PI())/'Standing Wave'!$C$3)*A165-2*PI()*'Standing Wave'!$C$7*'Standing Wave'!$C$9) -> -0.1048071062 | C165: ='Standing Wave'!$C$2*SIN(((2*PI())/'Standing Wave'!$C$4)*A165+2*PI()*'Standing Wave'!$C$8*'Standing Wave'!$C$9) -> -0.2067701436 | D165: -0.3115772497
A166: =SUM(A165)+'Standing Wave'!$C$5 -> 1.64 | B166: ='Standing Wave'!$C$1*SIN(((2*PI())/'Standing Wave'!$C$3)*A166-2*PI()*'Standing Wave'!$C$7*'Standing Wave'!$C$9) -> -0.113084329 | C166: ='Standing Wave'!$C$2*SIN(((2*PI())/'Standing Wave'!$C$4)*A166+2*PI()*'Standing Wave'!$C$8*'Standing Wave'!$C$9) -> -0.2151855068 | D166: -0.3282698357
A167: =SUM(A166)+'Standing Wave'!$C$5 -> 1.65 | B167: ='Standing Wave'!$C$1*SIN(((2*PI())/'Standing Wave'!$C$3)*A167-2*PI()*'Standing Wave'!$C$7*'Standing Wave'!$C$9) -> -0.1209152596 | C167: ='Standing Wave'!$C$2*SIN(((2*PI())/'Standing Wave'!$C$4)*A167+2*PI()*'Standing Wave'!$C$8*'Standing Wave'!$C$9) -> -0.222751631 | D167: -0.3436668906
A168: =SUM(A167)+'Standing Wave'!$C$5 -> 1.66 | B168: ='Standing Wave'!$C$1*SIN(((2*PI())/'Standing Wave'!$C$3)*A168-2*PI()*'Standing Wave'!$C$7*'Standing Wave'!$C$9) -> -0.1282689929 | C168: ='Standing Wave'!$C$2*SIN(((2*PI())/'Standing Wave'!$C$4)*A168+2*PI()*'Standing Wave'!$C$8*'Standing Wave'!$C$9) -> -0.2294386564 | D168: -0.3577076493
A169: =SUM(A168)+'Standing Wave'!$C$5 -> 1.67 | B169: ='Standing Wave'!$C$1*SIN(((2*PI())/'Standing Wave'!$C$3)*A169-2*PI()*'Standing Wave'!$C$7*'Standing Wave'!$C$9) -> -0.1351165071 | C169: ='Standing Wave'!$C$2*SIN(((2*PI())/'Standing Wave'!$C$4)*A169+2*PI()*'Standing Wave'!$C$8*'Standing Wave'!$C$9) -> -0.2352201922 | D169: -0.3703366994
A170: =SUM(A169)+'Standing Wave'!$C$5 -> 1.68 | B170: ='Standing Wave'!$C$1*SIN(((2*PI())/'Standing Wave'!$C$3)*A170-2*PI()*'Standing Wave'!$C$7*'Standing Wave'!$C$9) -> -0.1414307782 | C170: ='Standing Wave'!$C$2*SIN(((2*PI())/'Standing Wave'!$C$4)*A170+2*PI()*'Standing Wave'!$C$8*'Standing Wave'!$C$9) -> -0.2400734214 | D170: -0.3815041996
A171: =SUM(A170)+'Standing Wave'!$C$5 -> 1.69 | B171: ='Standing Wave'!$C$1*SIN(((2*PI())/'Standing Wave'!$C$3)*A171-2*PI()*'Standing Wave'!$C$7*'Standing Wave'!$C$9) -> -0.1471868866 | C171: ='Standing Wave'!$C$2*SIN(((2*PI())/'Standing Wave'!$C$4)*A171+2*PI()*'Standing Wave'!$C$8*'Standing Wave'!$C$9) -> -0.2439791905 | D171: -0.3911660771
A172: =SUM(A171)+'Standing Wave'!$C$5 -> 1.7 | B172: ='Standing Wave'!$C$1*SIN(((2*PI())/'Standing Wave'!$C$3)*A172-2*PI()*'Standing Wave'!$C$7*'Standing Wave'!$C$9) -> -0.1523621156 | C172: ='Standing Wave'!$C$2*SIN(((2*PI())/'Standing Wave'!$C$4)*A172+2*PI()*'Standing Wave'!$C$8*'Standing Wave'!$C$9) -> -0.2469220851 | D172: -0.3992842008
A173: =SUM(A172)+'Standing Wave'!$C$5 -> 1.71 | B173: ='Standing Wave'!$C$1*SIN(((2*PI())/'Standing Wave'!$C$3)*A173-2*PI()*'Standing Wave'!$C$7*'Standing Wave'!$C$9) -> -0.156936041 | C173: ='Standing Wave'!$C$2*SIN(((2*PI())/'Standing Wave'!$C$4)*A173+2*PI()*'Standing Wave'!$C$8*'Standing Wave'!$C$9) -> -0.2488904912 | D173: -0.4058265321
A174: =SUM(A173)+'Standing Wave'!$C$5 -> 1.72 | B174: ='Standing Wave'!$C$1*SIN(((2*PI())/'Standing Wave'!$C$3)*A174-2*PI()*'Standing Wave'!$C$7*'Standing Wave'!$C$9) -> -0.1608906115 | C174: ='Standing Wave'!$C$2*SIN(((2*PI())/'Standing Wave'!$C$4)*A174+2*PI()*'Standing Wave'!$C$8*'Standing Wave'!$C$9) -> -0.2498766401 | D174: -0.4107672516
A175: =SUM(A174)+'Standing Wave'!$C$5 -> 1.73 | B175: ='Standing Wave'!$C$1*SIN(((2*PI())/'Standing Wave'!$C$3)*A175-2*PI()*'Standing Wave'!$C$7*'Standing Wave'!$C$9) -> -0.1642102203 | C175: ='Standing Wave'!$C$2*SIN(((2*PI())/'Standing Wave'!$C$4)*A175+2*PI()*'Standing Wave'!$C$8*'Standing Wave'!$C$9) -> -0.2498766401 | D175: -0.4140868603
A176: =SUM(A175)+'Standing Wave'!$C$5 -> 1.74 | B176: ='Standing Wave'!$C$1*SIN(((2*PI())/'Standing Wave'!$C$3)*A176-2*PI()*'Standing Wave'!$C$7*'Standing Wave'!$C$9) -> -0.1668817663 | C176: ='Standing Wave'!$C$2*SIN(((2*PI())/'Standing Wave'!$C$4)*A176+2*PI()*'Standing Wave'!$C$8*'Standing Wave'!$C$9) -> -0.2488904912 | D176: -0.4157722574
A177: =SUM(A176)+'Standing Wave'!$C$5 -> 1.75 | B177: ='Standing Wave'!$C$1*SIN(((2*PI())/'Standing Wave'!$C$3)*A177-2*PI()*'Standing Wave'!$C$7*'Standing Wave'!$C$9) -> -0.1688947062 | C177: ='Standing Wave'!$C$2*SIN(((2*PI())/'Standing Wave'!$C$4)*A177+2*PI()*'Standing Wave'!$C$8*'Standing Wave'!$C$9) -> -0.2469220851 | D177: -0.4158167914
A178: =SUM(A177)+'Standing Wave'!$C$5 -> 1.76 | B178: ='Standing Wave'!$C$1*SIN(((2*PI())/'Standing Wave'!$C$3)*A178-2*PI()*'Standing Wave'!$C$7*'Standing Wave'!$C$9) -> -0.1702410959 | C178: ='Standing Wave'!$C$2*SIN(((2*PI())/'Standing Wave'!$C$4)*A178+2*PI()*'Standing Wave'!$C$8*'Standing Wave'!$C$9) -> -0.2439791905 | D178: -0.4142202864
A179: =SUM(A178)+'Standing Wave'!$C$5 -> 1.77 | B179: ='Standing Wave'!$C$1*SIN(((2*PI())/'Standing Wave'!$C$3)*A179-2*PI()*'Standing Wave'!$C$7*'Standing Wave'!$C$9) -> -0.1709156218 | C179: ='Standing Wave'!$C$2*SIN(((2*PI())/'Standing Wave'!$C$4)*A179+2*PI()*'Standing Wave'!$C$8*'Standing Wave'!$C$9) -> -0.2400734214 | D179: -0.4109890432
A180: =SUM(A179)+'Standing Wave'!$C$5 -> 1.78 | B180: ='Standing Wave'!$C$1*SIN(((2*PI())/'Standing Wave'!$C$3)*A180-2*PI()*'Standing Wave'!$C$7*'Standing Wave'!$C$9) -> -0.1709156218 | C180: ='Standing Wave'!$C$2*SIN(((2*PI())/'Standing Wave'!$C$4)*A180+2*PI()*'Standing Wave'!$C$8*'Standing Wave'!$C$9) -> -0.2352201922 | D180: -0.4061358141
A181: =SUM(A180)+'Standing Wave'!$C$5 -> 1.79 | B181: ='Standing Wave'!$C$1*SIN(((2*PI())/'Standing Wave'!$C$3)*A181-2*PI()*'Standing Wave'!$C$7*'Standing Wave'!$C$9) -> -0.1702410959 | C181: ='Standing Wave'!$C$2*SIN(((2*PI())/'Standing Wave'!$C$4)*A181+2*PI()*'Standing Wave'!$C$8*'Standing Wave'!$C$9) -> -0.2294386564 | D181: -0.3996797524
A182: =SUM(A181)+'Standing Wave'!$C$5 -> 1.8 | B182: ='Standing Wave'!$C$1*SIN(((2*PI())/'Standing Wave'!$C$3)*A182-2*PI()*'Standing Wave'!$C$7*'Standing Wave'!$C$9) -> -0.1688947062 | C182: ='Standing Wave'!$C$2*SIN(((2*PI())/'Standing Wave'!$C$4)*A182+2*PI()*'Standing Wave'!$C$8*'Standing Wave'!$C$9) -> -0.222751631 | D182: -0.3916463373
A183: =SUM(A182)+'Standing Wave'!$C$5 -> 1.81 | B183: ='Standing Wave'!$C$1*SIN(((2*PI())/'Standing Wave'!$C$3)*A183-2*PI()*'Standing Wave'!$C$7*'Standing Wave'!$C$9) -> -0.1668817663 | C183: ='Standing Wave'!$C$2*SIN(((2*PI())/'Standing Wave'!$C$4)*A183+2*PI()*'Standing Wave'!$C$8*'Standing Wave'!$C$9) -> -0.2151855068 | D183: -0.382067273
A184: =SUM(A183)+'Standing Wave'!$C$5 -> 1.82 | B184: ='Standing Wave'!$C$1*SIN(((2*PI())/'Standing Wave'!$C$3)*A184-2*PI()*'Standing Wave'!$C$7*'Standing Wave'!$C$9) -> -0.1642102203 | C184: ='Standing Wave'!$C$2*SIN(((2*PI())/'Standing Wave'!$C$4)*A184+2*PI()*'Standing Wave'!$C$8*'Standing Wave'!$C$9) -> -0.2067701436 | D184: -0.3709803638
A185: =SUM(A184)+'Standing Wave'!$C$5 -> 1.83 | B185: ='Standing Wave'!$C$1*SIN(((2*PI())/'Standing Wave'!$C$3)*A185-2*PI()*'Standing Wave'!$C$7*'Standing Wave'!$C$9) -> -0.1608906115 | C185: ='Standing Wave'!$C$2*SIN(((2*PI())/'Standing Wave'!$C$4)*A185+2*PI()*'Standing Wave'!$C$8*'Standing Wave'!$C$9) -> -0.1975387531 | D185: -0.3584293646
A186: =SUM(A185)+'Standing Wave'!$C$5 -> 1.84 | B186: ='Standing Wave'!$C$1*SIN(((2*PI())/'Standing Wave'!$C$3)*A186-2*PI()*'Standing Wave'!$C$7*'Standing Wave'!$C$9) -> -0.156936041 | C186: ='Standing Wave'!$C$2*SIN(((2*PI())/'Standing Wave'!$C$4)*A186+2*PI()*'Standing Wave'!$C$8*'Standing Wave'!$C$9) -> -0.1875277674 | D186: -0.3444638084
A187: =SUM(A186)+'Standing Wave'!$C$5 -> 1.85 | B187: ='Standing Wave'!$C$1*SIN(((2*PI())/'Standing Wave'!$C$3)*A187-2*PI()*'Standing Wave'!$C$7*'Standing Wave'!$C$9) -> -0.1523621156 | C187: ='Standing Wave'!$C$2*SIN(((2*PI())/'Standing Wave'!$C$4)*A187+2*PI()*'Standing Wave'!$C$8*'Standing Wave'!$C$9) -> -0.1767766953 | D187: -0.3291388109
A188: =SUM(A187)+'Standing Wave'!$C$5 -> 1.86 | B188: ='Standing Wave'!$C$1*SIN(((2*PI())/'Standing Wave'!$C$3)*A188-2*PI()*'Standing Wave'!$C$7*'Standing Wave'!$C$9) -> -0.1471868866 | C188: ='Standing Wave'!$C$2*SIN(((2*PI())/'Standing Wave'!$C$4)*A188+2*PI()*'Standing Wave'!$C$8*'Standing Wave'!$C$9) -> -0.1653279663 | D188: -0.3125148529
A189: =SUM(A188)+'Standing Wave'!$C$5 -> 1.87 | B189: ='Standing Wave'!$C$1*SIN(((2*PI())/'Standing Wave'!$C$3)*A189-2*PI()*'Standing Wave'!$C$7*'Standing Wave'!$C$9) -> -0.1414307782 | C189: ='Standing Wave'!$C$2*SIN(((2*PI())/'Standing Wave'!$C$4)*A189+2*PI()*'Standing Wave'!$C$8*'Standing Wave'!$C$9) -> -0.1532267634 | D189: -0.2946575416
A190: =SUM(A189)+'Standing Wave'!$C$5 -> 1.88 | B190: ='Standing Wave'!$C$1*SIN(((2*PI())/'Standing Wave'!$C$3)*A190-2*PI()*'Standing Wave'!$C$7*'Standing Wave'!$C$9) -> -0.1351165071 | C190: ='Standing Wave'!$C$2*SIN(((2*PI())/'Standing Wave'!$C$4)*A190+2*PI()*'Standing Wave'!$C$8*'Standing Wave'!$C$9) -> -0.1405208445 | D190: -0.2756373516
A191: =SUM(A190)+'Standing Wave'!$C$5 -> 1.89 | B191: ='Standing Wave'!$C$1*SIN(((2*PI())/'Standing Wave'!$C$3)*A191-2*PI()*'Standing Wave'!$C$7*'Standing Wave'!$C$9) -> -0.1282689929 | C191: ='Standing Wave'!$C$2*SIN(((2*PI())/'Standing Wave'!$C$4)*A191+2*PI()*'Standing Wave'!$C$8*'Standing Wave'!$C$9) -> -0.1272603539 | D191: -0.2555293468
A192: =SUM(A191)+'Standing Wave'!$C$5 -> 1.9 | B192: ='Standing Wave'!$C$1*SIN(((2*PI())/'Standing Wave'!$C$3)*A192-2*PI()*'Standing Wave'!$C$7*'Standing Wave'!$C$9) -> -0.1209152596 | C192: ='Standing Wave'!$C$2*SIN(((2*PI())/'Standing Wave'!$C$4)*A192+2*PI()*'Standing Wave'!$C$8*'Standing Wave'!$C$9) -> -0.1134976249 | D192: -0.2344128845
A193: =SUM(A192)+'Standing Wave'!$C$5 -> 1.91 | B193: ='Standing Wave'!$C$1*SIN(((2*PI())/'Standing Wave'!$C$3)*A193-2*PI()*'Standing Wave'!$C$7*'Standing Wave'!$C$9) -> -0.113084329 | C193: ='Standing Wave'!$C$2*SIN(((2*PI())/'Standing Wave'!$C$4)*A193+2*PI()*'Standing Wave'!$C$8*'Standing Wave'!$C$9) -> -0.09928697266 | D193: -0.2123713016
A194: =SUM(A193)+'Standing Wave'!$C$5 -> 1.92 | B194: ='Standing Wave'!$C$1*SIN(((2*PI())/'Standing Wave'!$C$3)*A194-2*PI()*'Standing Wave'!$C$7*'Standing Wave'!$C$9) -> -0.1048071062 | C194: ='Standing Wave'!$C$2*SIN(((2*PI())/'Standing Wave'!$C$4)*A194+2*PI()*'Standing Wave'!$C$8*'Standing Wave'!$C$9) -> -0.08468448006 | D194: -0.1894915862
A195: =SUM(A194)+'Standing Wave'!$C$5 -> 1.93 | B195: ='Standing Wave'!$C$1*SIN(((2*PI())/'Standing Wave'!$C$3)*A195-2*PI()*'Standing Wave'!$C$7*'Standing Wave'!$C$9) -> -0.09611625761 | C195: ='Standing Wave'!$C$2*SIN(((2*PI())/'Standing Wave'!$C$4)*A195+2*PI()*'Standing Wave'!$C$8*'Standing Wave'!$C$9) -> -0.06974777651 | D195: -0.1658640341
A196: =SUM(A195)+'Standing Wave'!$C$5 -> 1.94 | B196: ='Standing Wave'!$C$1*SIN(((2*PI())/'Standing Wave'!$C$3)*A196-2*PI()*'Standing Wave'!$C$7*'Standing Wave'!$C$9) -> -0.08704608209 | C196: ='Standing Wave'!$C$2*SIN(((2*PI())/'Standing Wave'!$C$4)*A196+2*PI()*'Standing Wave'!$C$8*'Standing Wave'!$C$9) -> -0.05453581035 | D196: -0.1415818924
A197: =SUM(A196)+'Standing Wave'!$C$5 -> 1.95 | B197: ='Standing Wave'!$C$1*SIN(((2*PI())/'Standing Wave'!$C$3)*A197-2*PI()*'Standing Wave'!$C$7*'Standing Wave'!$C$9) -> -0.07763237546 | C197: ='Standing Wave'!$C$2*SIN(((2*PI())/'Standing Wave'!$C$4)*A197+2*PI()*'Standing Wave'!$C$8*'Standing Wave'!$C$9) -> -0.03910861626 | D197: =B197+C197 -> -0.1167409917
A198: =SUM(A197)+'Standing Wave'!$C$5 -> 1.96 | B198: ='Standing Wave'!$C$1*SIN(((2*PI())/'Standing Wave'!$C$3)*A198-2*PI()*'Standing Wave'!$C$7*'Standing Wave'!$C$9) -> -0.0679122893 | C198: ='Standing Wave'!$C$2*SIN(((2*PI())/'Standing Wave'!$C$4)*A198+2*PI()*'Standing Wave'!$C$8*'Standing Wave'!$C$9) -> -0.02352707833 | D198: -0.09143936763
A199: =SUM(A198)+'Standing Wave'!$C$5 -> 1.97 | B199: ='Standing Wave'!$C$1*SIN(((2*PI())/'Standing Wave'!$C$3)*A199-2*PI()*'Standing Wave'!$C$7*'Standing Wave'!$C$9) -> -0.05792418436 | C199: ='Standing Wave'!$C$2*SIN(((2*PI())/'Standing Wave'!$C$4)*A199+2*PI()*'Standing Wave'!$C$8*'Standing Wave'!$C$9) -> -0.00785268977 | D199: -0.06577687413
A200: =SUM(A199)+'Standing Wave'!$C$5 -> 1.98 | B200: ='Standing Wave'!$C$1*SIN(((2*PI())/'Standing Wave'!$C$3)*A200-2*PI()*'Standing Wave'!$C$7*'Standing Wave'!$C$9) -> -0.04770747913 | C200: ='Standing Wave'!$C$2*SIN(((2*PI())/'Standing Wave'!$C$4)*A200+2*PI()*'Standing Wave'!$C$8*'Standing Wave'!$C$9) -> 0.00785268977 | D200: -0.03985478936
A201: =SUM(A200)+'Standing Wave'!$C$5 -> 1.99 | B201: ='Standing Wave'!$C$1*SIN(((2*PI())/'Standing Wave'!$C$3)*A201-2*PI()*'Standing Wave'!$C$7*'Standing Wave'!$C$9) -> -0.03730249428 | C201: ='Standing Wave'!$C$2*SIN(((2*PI())/'Standing Wave'!$C$4)*A201+2*PI()*'Standing Wave'!$C$8*'Standing Wave'!$C$9) -> 0.02352707833 | D201: -0.01377541595
... 51 more rows
